{"text_format":"3","workbook":"xlsx","n_sheets":5,"sheets":["Τιμολόγιο","Πελάτες","Τιμολόγια - Κύρια","Λεπτομέρειες τιμολογίου","Πληροφορίες για αυτήν την παρακ"],"not_rendered":{"defined_names":8},"read":"whole","date_system":"1900"}

{"sheet":"Τιμολόγιο","index":0,"n_rows":39,"n_cols":7,"rows_kept":39,"merged":[[1,1,1,2],[1,3,1,4],[1,5,1,6],[2,1,2,2],[2,3,2,4],[2,5,2,6],[3,3,3,4],[4,3,4,4],[5,3,5,4],[37,1,37,4],[38,1,38,4]]}
[null,"Επωνυμία εταιρείας"]
[null,"Οδός και αριθμός",null,"Τηλ.: Αριθμός τηλεφώνου",null,"Διεύθυνση ηλεκτρονικού ταχυδρομείου"]
[null,"Πόλη, Νομός, Ταχ. κώδικας",null,"Φαξ: Αριθμός φαξ",null,"Τοποθεσία Web"]
[null,"Χρέωση σε:",{"$f":"IFERROR(VLOOKUP(VLOOKUP(τιμολόγιοrng,ΚύριαΤιμολόγια[],2,FALSE),ΛίσταΠελατών[],3,TRUE),\"\")","v":"Contoso, Ltd"},{"$f":"\"Τηλέφωνο: \"&IFERROR(VLOOKUP(VLOOKUP(τιμολόγιοrng,ΚύριαΤιμολόγια[],2,FALSE),ΛίσταΠελατών[],9,FALSE),\"\")","v":"Τηλέφωνο: 432-555-0189"},null,"Τιμολόγιο #:","3-456-2"]
[null,"Διεύθυνση:",{"$f":"IFERROR(IF((VLOOKUP(VLOOKUP(τιμολόγιοrng,ΚύριαΤιμολόγια[],2,FALSE),ΛίσταΠελατών[],5,FALSE))=\"\",\"\",(VLOOKUP(VLOOKUP(τιμολόγιοrng,ΚύριαΤιμολόγια[],2,FALSE),ΛίσταΠελατών[],5,FALSE))),\"\")","v":"Νίκης 567"},{"$f":"\"Φαξ:     \"&IFERROR(VLOOKUP(VLOOKUP(τιμολόγιοrng,ΚύριαΤιμολόγια[],2,FALSE),ΛίσταΠελατών[],11,FALSE),\"\")","v":"Φαξ:     432-555-0123"},null,"Ημερομηνία τιμολογίου:",{"$f":"IFERROR(IF(VLOOKUP(τιμολόγιοrng,ΚύριαΤιμολόγια[],3,FALSE)=\"\",\"\",VLOOKUP(τιμολόγιοrng,ΚύριαΤιμολόγια[],3,FALSE)),\"\")","v":{"v":43685,"d":"4368500.00%"}}]
[null,null,{"$f":"IFERROR(VLOOKUP(VLOOKUP(τιμολόγιοrng,ΚύριαΤιμολόγια[],2,FALSE),ΛίσταΠελατών[],6,FALSE)&\", \"& VLOOKUP(VLOOKUP(G4,ΚύριαΤιμολόγια[],2,FALSE),ΛίσταΠελατών[],7,FALSE)&\" \"&VLOOKUP(VLOOKUP(G4,ΚύριαΤιμολόγια[],2,FALSE),ΛίσταΠελατών[],8,FALSE),\"\")","v":"Βόλος, ΤΚ 098765"},{"$f":"\"Διεύθυνση ηλεκτρονικού ταχυδρομείου: \"&IFERROR(VLOOKUP(VLOOKUP(τιμολόγιοrng,ΚύριαΤιμολόγια[],2,FALSE),ΛίσταΠελατών[],10,FALSE),\"\")","v":"Διεύθυνση ηλεκτρονικού ταχυδρομείου: someone@example.com"}]
[null,{"$f":"\"Τιμολόγιο για: \"&IFERROR(VLOOKUP(τιμολόγιοrng,ΚύριαΤιμολόγια[],4),\"\")","v":"Τιμολόγιο για: Έργο 2"}]
[null,"Είδος #","Περιγραφή","Ποσότητα","Τιμή μονάδας","Έκπτωση","Τιμή"]
[null,{"$f":"IFERROR(INDEX(ΣτοιχείαΤιμολογίου[],SMALL(IF(ΣτοιχείαΤιμολογίου[Αρ. τιμολογίου]=τιμολόγιοrng,ROW(ΣτοιχείαΤιμολογίου[])-ROW(ΣτοιχείαΤιμολογίου[#Headers])), ROW(1:1)), MATCH($B$8, ΣτοιχείαΤιμολογίου[#Headers], 0)),\"\")","v":"Z4567"},{"$f":"IFERROR(INDEX(ΣτοιχείαΤιμολογίου[],SMALL(IF(ΣτοιχείαΤιμολογίου[Αρ. τιμολογίου]=τιμολόγιοrng,ROW(ΣτοιχείαΤιμολογίου[])-ROW(ΣτοιχείαΤιμολογίου[#Headers])), ROW(1:1)), MATCH($C$8, ΣτοιχείαΤιμολογίου[#Headers], 0)),\"\")","v":"Τιμολόγιο 3-456-2 δεδομένα 1"},{"$f":"IFERROR(INDEX(ΣτοιχείαΤιμολογίου[],SMALL(IF(ΣτοιχείαΤιμολογίου[Αρ. τιμολογίου]=τιμολόγιοrng,ROW(ΣτοιχείαΤιμολογίου[])-ROW(ΣτοιχείαΤιμολογίου[#Headers])), ROW(1:1)), MATCH($D$8, ΣτοιχείαΤιμολογίου[#Headers], 0)),\"\")","v":39},{"$f":"IFERROR(INDEX(ΣτοιχείαΤιμολογίου[],SMALL(IF(ΣτοιχείαΤιμολογίου[Αρ. τιμολογίου]=τιμολόγιοrng,ROW(ΣτοιχείαΤιμολογίου[])-ROW(ΣτοιχείαΤιμολογίου[#Headers])), ROW(1:1)), MATCH($E$8, ΣτοιχείαΤιμολογίου[#Headers], 0)),\"\")","v":{"v":5,"d":"5.00 €"}},{"$f":"IFERROR(INDEX(ΣτοιχείαΤιμολογίου[],SMALL(IF(ΣτοιχείαΤιμολογίου[Αρ. τιμολογίου]=τιμολόγιοrng,ROW(ΣτοιχείαΤιμολογίου[])-ROW(ΣτοιχείαΤιμολογίου[#Headers])), ROW(1:1)), MATCH($F$8, ΣτοιχείαΤιμολογίου[#Headers], 0)),\"\")","v":0},{"$f":"IFERROR((D9*E9)-F9,\"\")","v":{"v":195,"d":"195.00 €"}}]
[null,{"$f":"IFERROR(INDEX(ΣτοιχείαΤιμολογίου[],SMALL(IF(ΣτοιχείαΤιμολογίου[Αρ. τιμολογίου]=τιμολόγιοrng,ROW(ΣτοιχείαΤιμολογίου[])-ROW(ΣτοιχείαΤιμολογίου[#Headers])), ROW(2:2)), MATCH($B$8, ΣτοιχείαΤιμολογίου[#Headers], 0)),\"\")","v":"Z4568"},{"$f":"IFERROR(INDEX(ΣτοιχείαΤιμολογίου[],SMALL(IF(ΣτοιχείαΤιμολογίου[Αρ. τιμολογίου]=τιμολόγιοrng,ROW(ΣτοιχείαΤιμολογίου[])-ROW(ΣτοιχείαΤιμολογίου[#Headers])), ROW(2:2)), MATCH($C$8, ΣτοιχείαΤιμολογίου[#Headers], 0)),\"\")","v":"Τιμολόγιο 3-456-2 δεδομένα 2"},{"$f":"IFERROR(INDEX(ΣτοιχείαΤιμολογίου[],SMALL(IF(ΣτοιχείαΤιμολογίου[Αρ. τιμολογίου]=τιμολόγιοrng,ROW(ΣτοιχείαΤιμολογίου[])-ROW(ΣτοιχείαΤιμολογίου[#Headers])), ROW(2:2)), MATCH($D$8, ΣτοιχείαΤιμολογίου[#Headers], 0)),\"\")","v":40},{"$f":"IFERROR(INDEX(ΣτοιχείαΤιμολογίου[],SMALL(IF(ΣτοιχείαΤιμολογίου[Αρ. τιμολογίου]=τιμολόγιοrng,ROW(ΣτοιχείαΤιμολογίου[])-ROW(ΣτοιχείαΤιμολογίου[#Headers])), ROW(2:2)), MATCH($E$8, ΣτοιχείαΤιμολογίου[#Headers], 0)),\"\")","v":{"v":4,"d":"4.00 €"}},{"$f":"IFERROR(INDEX(ΣτοιχείαΤιμολογίου[],SMALL(IF(ΣτοιχείαΤιμολογίου[Αρ. τιμολογίου]=τιμολόγιοrng,ROW(ΣτοιχείαΤιμολογίου[])-ROW(ΣτοιχείαΤιμολογίου[#Headers])), ROW(2:2)), MATCH($F$8, ΣτοιχείαΤιμολογίου[#Headers], 0)),\"\")","v":{"v":5,"d":"5.00 €"}},{"v":155,"d":"155.00 €"}]
[null,{"$f":"IFERROR(INDEX(ΣτοιχείαΤιμολογίου[],SMALL(IF(ΣτοιχείαΤιμολογίου[Αρ. τιμολογίου]=τιμολόγιοrng,ROW(ΣτοιχείαΤιμολογίου[])-ROW(ΣτοιχείαΤιμολογίου[#Headers])), ROW(3:3)), MATCH($B$8, ΣτοιχείαΤιμολογίου[#Headers], 0)),\"\")","v":"Z4569"},{"$f":"IFERROR(INDEX(ΣτοιχείαΤιμολογίου[],SMALL(IF(ΣτοιχείαΤιμολογίου[Αρ. τιμολογίου]=τιμολόγιοrng,ROW(ΣτοιχείαΤιμολογίου[])-ROW(ΣτοιχείαΤιμολογίου[#Headers])), ROW(3:3)), MATCH($C$8, ΣτοιχείαΤιμολογίου[#Headers], 0)),\"\")","v":"Τιμολόγιο 3-456-2 δεδομένα 3"},{"$f":"IFERROR(INDEX(ΣτοιχείαΤιμολογίου[],SMALL(IF(ΣτοιχείαΤιμολογίου[Αρ. τιμολογίου]=τιμολόγιοrng,ROW(ΣτοιχείαΤιμολογίου[])-ROW(ΣτοιχείαΤιμολογίου[#Headers])), ROW(3:3)), MATCH($D$8, ΣτοιχείαΤιμολογίου[#Headers], 0)),\"\")","v":30},{"$f":"IFERROR(INDEX(ΣτοιχείαΤιμολογίου[],SMALL(IF(ΣτοιχείαΤιμολογίου[Αρ. τιμολογίου]=τιμολόγιοrng,ROW(ΣτοιχείαΤιμολογίου[])-ROW(ΣτοιχείαΤιμολογίου[#Headers])), ROW(3:3)), MATCH($E$8, ΣτοιχείαΤιμολογίου[#Headers], 0)),\"\")","v":{"v":6,"d":"6.00 €"}},{"$f":"IFERROR(INDEX(ΣτοιχείαΤιμολογίου[],SMALL(IF(ΣτοιχείαΤιμολογίου[Αρ. τιμολογίου]=τιμολόγιοrng,ROW(ΣτοιχείαΤιμολογίου[])-ROW(ΣτοιχείαΤιμολογίου[#Headers])), ROW(3:3)), MATCH($F$8, ΣτοιχείαΤιμολογίου[#Headers], 0)),\"\")","v":{"v":7,"d":"7.00 €"}},{"v":173,"d":"173.00 €"}]
[null,{"$f":"IFERROR(INDEX(ΣτοιχείαΤιμολογίου[],SMALL(IF(ΣτοιχείαΤιμολογίου[Αρ. τιμολογίου]=τιμολόγιοrng,ROW(ΣτοιχείαΤιμολογίου[])-ROW(ΣτοιχείαΤιμολογίου[#Headers])), ROW(4:4)), MATCH($B$8, ΣτοιχείαΤιμολογίου[#Headers], 0)),\"\")","v":"Z4570"},{"$f":"IFERROR(INDEX(ΣτοιχείαΤιμολογίου[],SMALL(IF(ΣτοιχείαΤιμολογίου[Αρ. τιμολογίου]=τιμολόγιοrng,ROW(ΣτοιχείαΤιμολογίου[])-ROW(ΣτοιχείαΤιμολογίου[#Headers])), ROW(4:4)), MATCH($C$8, ΣτοιχείαΤιμολογίου[#Headers], 0)),\"\")","v":"Τιμολόγιο 3-456-2 δεδομένα 4"},{"$f":"IFERROR(INDEX(ΣτοιχείαΤιμολογίου[],SMALL(IF(ΣτοιχείαΤιμολογίου[Αρ. τιμολογίου]=τιμολόγιοrng,ROW(ΣτοιχείαΤιμολογίου[])-ROW(ΣτοιχείαΤιμολογίου[#Headers])), ROW(4:4)), MATCH($D$8, ΣτοιχείαΤιμολογίου[#Headers], 0)),\"\")","v":40},{"$f":"IFERROR(INDEX(ΣτοιχείαΤιμολογίου[],SMALL(IF(ΣτοιχείαΤιμολογίου[Αρ. τιμολογίου]=τιμολόγιοrng,ROW(ΣτοιχείαΤιμολογίου[])-ROW(ΣτοιχείαΤιμολογίου[#Headers])), ROW(4:4)), MATCH($E$8, ΣτοιχείαΤιμολογίου[#Headers], 0)),\"\")","v":{"v":7,"d":"7.00 €"}},{"$f":"IFERROR(INDEX(ΣτοιχείαΤιμολογίου[],SMALL(IF(ΣτοιχείαΤιμολογίου[Αρ. τιμολογίου]=τιμολόγιοrng,ROW(ΣτοιχείαΤιμολογίου[])-ROW(ΣτοιχείαΤιμολογίου[#Headers])), ROW(4:4)), MATCH($F$8, ΣτοιχείαΤιμολογίου[#Headers], 0)),\"\")","v":0},{"v":280,"d":"280.00 €"}]
[null,{"$f":"IFERROR(INDEX(ΣτοιχείαΤιμολογίου[],SMALL(IF(ΣτοιχείαΤιμολογίου[Αρ. τιμολογίου]=τιμολόγιοrng,ROW(ΣτοιχείαΤιμολογίου[])-ROW(ΣτοιχείαΤιμολογίου[#Headers])), ROW(5:5)), MATCH($B$8, ΣτοιχείαΤιμολογίου[#Headers], 0)),\"\")","v":"Z4571"},{"$f":"IFERROR(INDEX(ΣτοιχείαΤιμολογίου[],SMALL(IF(ΣτοιχείαΤιμολογίου[Αρ. τιμολογίου]=τιμολόγιοrng,ROW(ΣτοιχείαΤιμολογίου[])-ROW(ΣτοιχείαΤιμολογίου[#Headers])), ROW(5:5)), MATCH($C$8, ΣτοιχείαΤιμολογίου[#Headers], 0)),\"\")","v":"Τιμολόγιο 3-456-2 δεδομένα 5"},{"$f":"IFERROR(INDEX(ΣτοιχείαΤιμολογίου[],SMALL(IF(ΣτοιχείαΤιμολογίου[Αρ. τιμολογίου]=τιμολόγιοrng,ROW(ΣτοιχείαΤιμολογίου[])-ROW(ΣτοιχείαΤιμολογίου[#Headers])), ROW(5:5)), MATCH($D$8, ΣτοιχείαΤιμολογίου[#Headers], 0)),\"\")","v":10},{"$f":"IFERROR(INDEX(ΣτοιχείαΤιμολογίου[],SMALL(IF(ΣτοιχείαΤιμολογίου[Αρ. τιμολογίου]=τιμολόγιοrng,ROW(ΣτοιχείαΤιμολογίου[])-ROW(ΣτοιχείαΤιμολογίου[#Headers])), ROW(5:5)), MATCH($E$8, ΣτοιχείαΤιμολογίου[#Headers], 0)),\"\")","v":{"v":4,"d":"4.00 €"}},{"$f":"IFERROR(INDEX(ΣτοιχείαΤιμολογίου[],SMALL(IF(ΣτοιχείαΤιμολογίου[Αρ. τιμολογίου]=τιμολόγιοrng,ROW(ΣτοιχείαΤιμολογίου[])-ROW(ΣτοιχείαΤιμολογίου[#Headers])), ROW(5:5)), MATCH($F$8, ΣτοιχείαΤιμολογίου[#Headers], 0)),\"\")","v":0},{"v":40,"d":"40.00 €"}]
[null,{"$f":"IFERROR(INDEX(ΣτοιχείαΤιμολογίου[],SMALL(IF(ΣτοιχείαΤιμολογίου[Αρ. τιμολογίου]=τιμολόγιοrng,ROW(ΣτοιχείαΤιμολογίου[])-ROW(ΣτοιχείαΤιμολογίου[#Headers])), ROW(6:6)), MATCH($B$8, ΣτοιχείαΤιμολογίου[#Headers], 0)),\"\")","v":"Z4572"},{"$f":"IFERROR(INDEX(ΣτοιχείαΤιμολογίου[],SMALL(IF(ΣτοιχείαΤιμολογίου[Αρ. τιμολογίου]=τιμολόγιοrng,ROW(ΣτοιχείαΤιμολογίου[])-ROW(ΣτοιχείαΤιμολογίου[#Headers])), ROW(6:6)), MATCH($C$8, ΣτοιχείαΤιμολογίου[#Headers], 0)),\"\")","v":"Τιμολόγιο 3-456-2 δεδομένα 6"},{"$f":"IFERROR(INDEX(ΣτοιχείαΤιμολογίου[],SMALL(IF(ΣτοιχείαΤιμολογίου[Αρ. τιμολογίου]=τιμολόγιοrng,ROW(ΣτοιχείαΤιμολογίου[])-ROW(ΣτοιχείαΤιμολογίου[#Headers])), ROW(6:6)), MATCH($D$8, ΣτοιχείαΤιμολογίου[#Headers], 0)),\"\")","v":5},{"$f":"IFERROR(INDEX(ΣτοιχείαΤιμολογίου[],SMALL(IF(ΣτοιχείαΤιμολογίου[Αρ. τιμολογίου]=τιμολόγιοrng,ROW(ΣτοιχείαΤιμολογίου[])-ROW(ΣτοιχείαΤιμολογίου[#Headers])), ROW(6:6)), MATCH($E$8, ΣτοιχείαΤιμολογίου[#Headers], 0)),\"\")","v":{"v":8,"d":"8.00 €"}},{"$f":"IFERROR(INDEX(ΣτοιχείαΤιμολογίου[],SMALL(IF(ΣτοιχείαΤιμολογίου[Αρ. τιμολογίου]=τιμολόγιοrng,ROW(ΣτοιχείαΤιμολογίου[])-ROW(ΣτοιχείαΤιμολογίου[#Headers])), ROW(6:6)), MATCH($F$8, ΣτοιχείαΤιμολογίου[#Headers], 0)),\"\")","v":0},{"v":40,"d":"40.00 €"}]
[null,{"$f":"IFERROR(INDEX(ΣτοιχείαΤιμολογίου[],SMALL(IF(ΣτοιχείαΤιμολογίου[Αρ. τιμολογίου]=τιμολόγιοrng,ROW(ΣτοιχείαΤιμολογίου[])-ROW(ΣτοιχείαΤιμολογίου[#Headers])), ROW(7:7)), MATCH($B$8, ΣτοιχείαΤιμολογίου[#Headers], 0)),\"\")","v":"Z4573"},{"$f":"IFERROR(INDEX(ΣτοιχείαΤιμολογίου[],SMALL(IF(ΣτοιχείαΤιμολογίου[Αρ. τιμολογίου]=τιμολόγιοrng,ROW(ΣτοιχείαΤιμολογίου[])-ROW(ΣτοιχείαΤιμολογίου[#Headers])), ROW(7:7)), MATCH($C$8, ΣτοιχείαΤιμολογίου[#Headers], 0)),\"\")","v":"Τιμολόγιο 3-456-2 δεδομένα 7"},{"$f":"IFERROR(INDEX(ΣτοιχείαΤιμολογίου[],SMALL(IF(ΣτοιχείαΤιμολογίου[Αρ. τιμολογίου]=τιμολόγιοrng,ROW(ΣτοιχείαΤιμολογίου[])-ROW(ΣτοιχείαΤιμολογίου[#Headers])), ROW(7:7)), MATCH($D$8, ΣτοιχείαΤιμολογίου[#Headers], 0)),\"\")","v":70},{"$f":"IFERROR(INDEX(ΣτοιχείαΤιμολογίου[],SMALL(IF(ΣτοιχείαΤιμολογίου[Αρ. τιμολογίου]=τιμολόγιοrng,ROW(ΣτοιχείαΤιμολογίου[])-ROW(ΣτοιχείαΤιμολογίου[#Headers])), ROW(7:7)), MATCH($E$8, ΣτοιχείαΤιμολογίου[#Headers], 0)),\"\")","v":{"v":6,"d":"6.00 €"}},{"$f":"IFERROR(INDEX(ΣτοιχείαΤιμολογίου[],SMALL(IF(ΣτοιχείαΤιμολογίου[Αρ. τιμολογίου]=τιμολόγιοrng,ROW(ΣτοιχείαΤιμολογίου[])-ROW(ΣτοιχείαΤιμολογίου[#Headers])), ROW(7:7)), MATCH($F$8, ΣτοιχείαΤιμολογίου[#Headers], 0)),\"\")","v":0},{"v":420,"d":"420.00 €"}]
[null,{"$f":"IFERROR(INDEX(ΣτοιχείαΤιμολογίου[],SMALL(IF(ΣτοιχείαΤιμολογίου[Αρ. τιμολογίου]=τιμολόγιοrng,ROW(ΣτοιχείαΤιμολογίου[])-ROW(ΣτοιχείαΤιμολογίου[#Headers])), ROW(8:8)), MATCH($B$8, ΣτοιχείαΤιμολογίου[#Headers], 0)),\"\")","v":"Z4574"},{"$f":"IFERROR(INDEX(ΣτοιχείαΤιμολογίου[],SMALL(IF(ΣτοιχείαΤιμολογίου[Αρ. τιμολογίου]=τιμολόγιοrng,ROW(ΣτοιχείαΤιμολογίου[])-ROW(ΣτοιχείαΤιμολογίου[#Headers])), ROW(8:8)), MATCH($C$8, ΣτοιχείαΤιμολογίου[#Headers], 0)),\"\")","v":"Τιμολόγιο 3-456-2 δεδομένα 8"},{"$f":"IFERROR(INDEX(ΣτοιχείαΤιμολογίου[],SMALL(IF(ΣτοιχείαΤιμολογίου[Αρ. τιμολογίου]=τιμολόγιοrng,ROW(ΣτοιχείαΤιμολογίου[])-ROW(ΣτοιχείαΤιμολογίου[#Headers])), ROW(8:8)), MATCH($D$8, ΣτοιχείαΤιμολογίου[#Headers], 0)),\"\")","v":25},{"$f":"IFERROR(INDEX(ΣτοιχείαΤιμολογίου[],SMALL(IF(ΣτοιχείαΤιμολογίου[Αρ. τιμολογίου]=τιμολόγιοrng,ROW(ΣτοιχείαΤιμολογίου[])-ROW(ΣτοιχείαΤιμολογίου[#Headers])), ROW(8:8)), MATCH($E$8, ΣτοιχείαΤιμολογίου[#Headers], 0)),\"\")","v":{"v":4,"d":"4.00 €"}},{"$f":"IFERROR(INDEX(ΣτοιχείαΤιμολογίου[],SMALL(IF(ΣτοιχείαΤιμολογίου[Αρ. τιμολογίου]=τιμολόγιοrng,ROW(ΣτοιχείαΤιμολογίου[])-ROW(ΣτοιχείαΤιμολογίου[#Headers])), ROW(8:8)), MATCH($F$8, ΣτοιχείαΤιμολογίου[#Headers], 0)),\"\")","v":0},{"v":100,"d":"100.00 €"}]
[null,{"$f":"IFERROR(INDEX(ΣτοιχείαΤιμολογίου[],SMALL(IF(ΣτοιχείαΤιμολογίου[Αρ. τιμολογίου]=τιμολόγιοrng,ROW(ΣτοιχείαΤιμολογίου[])-ROW(ΣτοιχείαΤιμολογίου[#Headers])), ROW(9:9)), MATCH($B$8, ΣτοιχείαΤιμολογίου[#Headers], 0)),\"\")","v":"Z4575"},{"$f":"IFERROR(INDEX(ΣτοιχείαΤιμολογίου[],SMALL(IF(ΣτοιχείαΤιμολογίου[Αρ. τιμολογίου]=τιμολόγιοrng,ROW(ΣτοιχείαΤιμολογίου[])-ROW(ΣτοιχείαΤιμολογίου[#Headers])), ROW(9:9)), MATCH($C$8, ΣτοιχείαΤιμολογίου[#Headers], 0)),\"\")","v":"Τιμολόγιο 3-456-2 δεδομένα 9"},{"$f":"IFERROR(INDEX(ΣτοιχείαΤιμολογίου[],SMALL(IF(ΣτοιχείαΤιμολογίου[Αρ. τιμολογίου]=τιμολόγιοrng,ROW(ΣτοιχείαΤιμολογίου[])-ROW(ΣτοιχείαΤιμολογίου[#Headers])), ROW(9:9)), MATCH($D$8, ΣτοιχείαΤιμολογίου[#Headers], 0)),\"\")","v":5},{"$f":"IFERROR(INDEX(ΣτοιχείαΤιμολογίου[],SMALL(IF(ΣτοιχείαΤιμολογίου[Αρ. τιμολογίου]=τιμολόγιοrng,ROW(ΣτοιχείαΤιμολογίου[])-ROW(ΣτοιχείαΤιμολογίου[#Headers])), ROW(9:9)), MATCH($E$8, ΣτοιχείαΤιμολογίου[#Headers], 0)),\"\")","v":{"v":7,"d":"7.00 €"}},{"$f":"IFERROR(INDEX(ΣτοιχείαΤιμολογίου[],SMALL(IF(ΣτοιχείαΤιμολογίου[Αρ. τιμολογίου]=τιμολόγιοrng,ROW(ΣτοιχείαΤιμολογίου[])-ROW(ΣτοιχείαΤιμολογίου[#Headers])), ROW(9:9)), MATCH($F$8, ΣτοιχείαΤιμολογίου[#Headers], 0)),\"\")","v":{"v":3,"d":"3.00 €"}},{"v":32,"d":"32.00 €"}]
[null,{"$f":"IFERROR(INDEX(ΣτοιχείαΤιμολογίου[],SMALL(IF(ΣτοιχείαΤιμολογίου[Αρ. τιμολογίου]=τιμολόγιοrng,ROW(ΣτοιχείαΤιμολογίου[])-ROW(ΣτοιχείαΤιμολογίου[#Headers])), ROW(10:10)), MATCH($B$8, ΣτοιχείαΤιμολογίου[#Headers], 0)),\"\")","v":"Z4576"},{"$f":"IFERROR(INDEX(ΣτοιχείαΤιμολογίου[],SMALL(IF(ΣτοιχείαΤιμολογίου[Αρ. τιμολογίου]=τιμολόγιοrng,ROW(ΣτοιχείαΤιμολογίου[])-ROW(ΣτοιχείαΤιμολογίου[#Headers])), ROW(10:10)), MATCH($C$8, ΣτοιχείαΤιμολογίου[#Headers], 0)),\"\")","v":"Τιμολόγιο 3-456-2 δεδομένα 10"},{"$f":"IFERROR(INDEX(ΣτοιχείαΤιμολογίου[],SMALL(IF(ΣτοιχείαΤιμολογίου[Αρ. τιμολογίου]=τιμολόγιοrng,ROW(ΣτοιχείαΤιμολογίου[])-ROW(ΣτοιχείαΤιμολογίου[#Headers])), ROW(10:10)), MATCH($D$8, ΣτοιχείαΤιμολογίου[#Headers], 0)),\"\")","v":80},{"$f":"IFERROR(INDEX(ΣτοιχείαΤιμολογίου[],SMALL(IF(ΣτοιχείαΤιμολογίου[Αρ. τιμολογίου]=τιμολόγιοrng,ROW(ΣτοιχείαΤιμολογίου[])-ROW(ΣτοιχείαΤιμολογίου[#Headers])), ROW(10:10)), MATCH($E$8, ΣτοιχείαΤιμολογίου[#Headers], 0)),\"\")","v":{"v":1,"d":"1.00 €"}},{"$f":"IFERROR(INDEX(ΣτοιχείαΤιμολογίου[],SMALL(IF(ΣτοιχείαΤιμολογίου[Αρ. τιμολογίου]=τιμολόγιοrng,ROW(ΣτοιχείαΤιμολογίου[])-ROW(ΣτοιχείαΤιμολογίου[#Headers])), ROW(10:10)), MATCH($F$8, ΣτοιχείαΤιμολογίου[#Headers], 0)),\"\")","v":0},{"v":80,"d":"80.00 €"}]
[null,{"$f":"IFERROR(INDEX(ΣτοιχείαΤιμολογίου[],SMALL(IF(ΣτοιχείαΤιμολογίου[Αρ. τιμολογίου]=τιμολόγιοrng,ROW(ΣτοιχείαΤιμολογίου[])-ROW(ΣτοιχείαΤιμολογίου[#Headers])), ROW(11:11)), MATCH($B$8, ΣτοιχείαΤιμολογίου[#Headers], 0)),\"\")","v":"Z4577"},{"$f":"IFERROR(INDEX(ΣτοιχείαΤιμολογίου[],SMALL(IF(ΣτοιχείαΤιμολογίου[Αρ. τιμολογίου]=τιμολόγιοrng,ROW(ΣτοιχείαΤιμολογίου[])-ROW(ΣτοιχείαΤιμολογίου[#Headers])), ROW(11:11)), MATCH($C$8, ΣτοιχείαΤιμολογίου[#Headers], 0)),\"\")","v":"Τιμολόγιο 3-456-2 δεδομένα 11"},{"$f":"IFERROR(INDEX(ΣτοιχείαΤιμολογίου[],SMALL(IF(ΣτοιχείαΤιμολογίου[Αρ. τιμολογίου]=τιμολόγιοrng,ROW(ΣτοιχείαΤιμολογίου[])-ROW(ΣτοιχείαΤιμολογίου[#Headers])), ROW(11:11)), MATCH($D$8, ΣτοιχείαΤιμολογίου[#Headers], 0)),\"\")","v":65},{"$f":"IFERROR(INDEX(ΣτοιχείαΤιμολογίου[],SMALL(IF(ΣτοιχείαΤιμολογίου[Αρ. τιμολογίου]=τιμολόγιοrng,ROW(ΣτοιχείαΤιμολογίου[])-ROW(ΣτοιχείαΤιμολογίου[#Headers])), ROW(11:11)), MATCH($E$8, ΣτοιχείαΤιμολογίου[#Headers], 0)),\"\")","v":{"v":7,"d":"7.00 €"}},{"$f":"IFERROR(INDEX(ΣτοιχείαΤιμολογίου[],SMALL(IF(ΣτοιχείαΤιμολογίου[Αρ. τιμολογίου]=τιμολόγιοrng,ROW(ΣτοιχείαΤιμολογίου[])-ROW(ΣτοιχείαΤιμολογίου[#Headers])), ROW(11:11)), MATCH($F$8, ΣτοιχείαΤιμολογίου[#Headers], 0)),\"\")","v":0},{"v":455,"d":"455.00 €"}]
[null,{"$f":"IFERROR(INDEX(ΣτοιχείαΤιμολογίου[],SMALL(IF(ΣτοιχείαΤιμολογίου[Αρ. τιμολογίου]=τιμολόγιοrng,ROW(ΣτοιχείαΤιμολογίου[])-ROW(ΣτοιχείαΤιμολογίου[#Headers])), ROW(12:12)), MATCH($B$8, ΣτοιχείαΤιμολογίου[#Headers], 0)),\"\")","v":"Z4578"},{"$f":"IFERROR(INDEX(ΣτοιχείαΤιμολογίου[],SMALL(IF(ΣτοιχείαΤιμολογίου[Αρ. τιμολογίου]=τιμολόγιοrng,ROW(ΣτοιχείαΤιμολογίου[])-ROW(ΣτοιχείαΤιμολογίου[#Headers])), ROW(12:12)), MATCH($C$8, ΣτοιχείαΤιμολογίου[#Headers], 0)),\"\")","v":"Τιμολόγιο 3-456-2 δεδομένα 12"},{"$f":"IFERROR(INDEX(ΣτοιχείαΤιμολογίου[],SMALL(IF(ΣτοιχείαΤιμολογίου[Αρ. τιμολογίου]=τιμολόγιοrng,ROW(ΣτοιχείαΤιμολογίου[])-ROW(ΣτοιχείαΤιμολογίου[#Headers])), ROW(12:12)), MATCH($D$8, ΣτοιχείαΤιμολογίου[#Headers], 0)),\"\")","v":44},{"$f":"IFERROR(INDEX(ΣτοιχείαΤιμολογίου[],SMALL(IF(ΣτοιχείαΤιμολογίου[Αρ. τιμολογίου]=τιμολόγιοrng,ROW(ΣτοιχείαΤιμολογίου[])-ROW(ΣτοιχείαΤιμολογίου[#Headers])), ROW(12:12)), MATCH($E$8, ΣτοιχείαΤιμολογίου[#Headers], 0)),\"\")","v":{"v":1,"d":"1.00 €"}},{"$f":"IFERROR(INDEX(ΣτοιχείαΤιμολογίου[],SMALL(IF(ΣτοιχείαΤιμολογίου[Αρ. τιμολογίου]=τιμολόγιοrng,ROW(ΣτοιχείαΤιμολογίου[])-ROW(ΣτοιχείαΤιμολογίου[#Headers])), ROW(12:12)), MATCH($F$8, ΣτοιχείαΤιμολογίου[#Headers], 0)),\"\")","v":0},{"v":44,"d":"44.00 €"}]
[null,{"$f":"IFERROR(INDEX(ΣτοιχείαΤιμολογίου[],SMALL(IF(ΣτοιχείαΤιμολογίου[Αρ. τιμολογίου]=τιμολόγιοrng,ROW(ΣτοιχείαΤιμολογίου[])-ROW(ΣτοιχείαΤιμολογίου[#Headers])), ROW(13:13)), MATCH($B$8, ΣτοιχείαΤιμολογίου[#Headers], 0)),\"\")","v":""},{"$f":"IFERROR(INDEX(ΣτοιχείαΤιμολογίου[],SMALL(IF(ΣτοιχείαΤιμολογίου[Αρ. τιμολογίου]=τιμολόγιοrng,ROW(ΣτοιχείαΤιμολογίου[])-ROW(ΣτοιχείαΤιμολογίου[#Headers])), ROW(13:13)), MATCH($C$8, ΣτοιχείαΤιμολογίου[#Headers], 0)),\"\")","v":""},{"$f":"IFERROR(INDEX(ΣτοιχείαΤιμολογίου[],SMALL(IF(ΣτοιχείαΤιμολογίου[Αρ. τιμολογίου]=τιμολόγιοrng,ROW(ΣτοιχείαΤιμολογίου[])-ROW(ΣτοιχείαΤιμολογίου[#Headers])), ROW(13:13)), MATCH($D$8, ΣτοιχείαΤιμολογίου[#Headers], 0)),\"\")","v":""},{"$f":"IFERROR(INDEX(ΣτοιχείαΤιμολογίου[],SMALL(IF(ΣτοιχείαΤιμολογίου[Αρ. τιμολογίου]=τιμολόγιοrng,ROW(ΣτοιχείαΤιμολογίου[])-ROW(ΣτοιχείαΤιμολογίου[#Headers])), ROW(13:13)), MATCH($E$8, ΣτοιχείαΤιμολογίου[#Headers], 0)),\"\")","v":""},{"$f":"IFERROR(INDEX(ΣτοιχείαΤιμολογίου[],SMALL(IF(ΣτοιχείαΤιμολογίου[Αρ. τιμολογίου]=τιμολόγιοrng,ROW(ΣτοιχείαΤιμολογίου[])-ROW(ΣτοιχείαΤιμολογίου[#Headers])), ROW(13:13)), MATCH($F$8, ΣτοιχείαΤιμολογίου[#Headers], 0)),\"\")","v":""},""]
[null,{"$f":"IFERROR(INDEX(ΣτοιχείαΤιμολογίου[],SMALL(IF(ΣτοιχείαΤιμολογίου[Αρ. τιμολογίου]=τιμολόγιοrng,ROW(ΣτοιχείαΤιμολογίου[])-ROW(ΣτοιχείαΤιμολογίου[#Headers])), ROW(14:14)), MATCH($B$8, ΣτοιχείαΤιμολογίου[#Headers], 0)),\"\")","v":""},{"$f":"IFERROR(INDEX(ΣτοιχείαΤιμολογίου[],SMALL(IF(ΣτοιχείαΤιμολογίου[Αρ. τιμολογίου]=τιμολόγιοrng,ROW(ΣτοιχείαΤιμολογίου[])-ROW(ΣτοιχείαΤιμολογίου[#Headers])), ROW(14:14)), MATCH($C$8, ΣτοιχείαΤιμολογίου[#Headers], 0)),\"\")","v":""},{"$f":"IFERROR(INDEX(ΣτοιχείαΤιμολογίου[],SMALL(IF(ΣτοιχείαΤιμολογίου[Αρ. τιμολογίου]=τιμολόγιοrng,ROW(ΣτοιχείαΤιμολογίου[])-ROW(ΣτοιχείαΤιμολογίου[#Headers])), ROW(14:14)), MATCH($D$8, ΣτοιχείαΤιμολογίου[#Headers], 0)),\"\")","v":""},{"$f":"IFERROR(INDEX(ΣτοιχείαΤιμολογίου[],SMALL(IF(ΣτοιχείαΤιμολογίου[Αρ. τιμολογίου]=τιμολόγιοrng,ROW(ΣτοιχείαΤιμολογίου[])-ROW(ΣτοιχείαΤιμολογίου[#Headers])), ROW(14:14)), MATCH($E$8, ΣτοιχείαΤιμολογίου[#Headers], 0)),\"\")","v":""},{"$f":"IFERROR(INDEX(ΣτοιχείαΤιμολογίου[],SMALL(IF(ΣτοιχείαΤιμολογίου[Αρ. τιμολογίου]=τιμολόγιοrng,ROW(ΣτοιχείαΤιμολογίου[])-ROW(ΣτοιχείαΤιμολογίου[#Headers])), ROW(14:14)), MATCH($F$8, ΣτοιχείαΤιμολογίου[#Headers], 0)),\"\")","v":""},""]
[null,{"$f":"IFERROR(INDEX(ΣτοιχείαΤιμολογίου[],SMALL(IF(ΣτοιχείαΤιμολογίου[Αρ. τιμολογίου]=τιμολόγιοrng,ROW(ΣτοιχείαΤιμολογίου[])-ROW(ΣτοιχείαΤιμολογίου[#Headers])), ROW(15:15)), MATCH($B$8, ΣτοιχείαΤιμολογίου[#Headers], 0)),\"\")","v":""},{"$f":"IFERROR(INDEX(ΣτοιχείαΤιμολογίου[],SMALL(IF(ΣτοιχείαΤιμολογίου[Αρ. τιμολογίου]=τιμολόγιοrng,ROW(ΣτοιχείαΤιμολογίου[])-ROW(ΣτοιχείαΤιμολογίου[#Headers])), ROW(15:15)), MATCH($C$8, ΣτοιχείαΤιμολογίου[#Headers], 0)),\"\")","v":""},{"$f":"IFERROR(INDEX(ΣτοιχείαΤιμολογίου[],SMALL(IF(ΣτοιχείαΤιμολογίου[Αρ. τιμολογίου]=τιμολόγιοrng,ROW(ΣτοιχείαΤιμολογίου[])-ROW(ΣτοιχείαΤιμολογίου[#Headers])), ROW(15:15)), MATCH($D$8, ΣτοιχείαΤιμολογίου[#Headers], 0)),\"\")","v":""},{"$f":"IFERROR(INDEX(ΣτοιχείαΤιμολογίου[],SMALL(IF(ΣτοιχείαΤιμολογίου[Αρ. τιμολογίου]=τιμολόγιοrng,ROW(ΣτοιχείαΤιμολογίου[])-ROW(ΣτοιχείαΤιμολογίου[#Headers])), ROW(15:15)), MATCH($E$8, ΣτοιχείαΤιμολογίου[#Headers], 0)),\"\")","v":""},{"$f":"IFERROR(INDEX(ΣτοιχείαΤιμολογίου[],SMALL(IF(ΣτοιχείαΤιμολογίου[Αρ. τιμολογίου]=τιμολόγιοrng,ROW(ΣτοιχείαΤιμολογίου[])-ROW(ΣτοιχείαΤιμολογίου[#Headers])), ROW(15:15)), MATCH($F$8, ΣτοιχείαΤιμολογίου[#Headers], 0)),\"\")","v":""},""]
[null,{"$f":"IFERROR(INDEX(ΣτοιχείαΤιμολογίου[],SMALL(IF(ΣτοιχείαΤιμολογίου[Αρ. τιμολογίου]=τιμολόγιοrng,ROW(ΣτοιχείαΤιμολογίου[])-ROW(ΣτοιχείαΤιμολογίου[#Headers])), ROW(16:16)), MATCH($B$8, ΣτοιχείαΤιμολογίου[#Headers], 0)),\"\")","v":""},{"$f":"IFERROR(INDEX(ΣτοιχείαΤιμολογίου[],SMALL(IF(ΣτοιχείαΤιμολογίου[Αρ. τιμολογίου]=τιμολόγιοrng,ROW(ΣτοιχείαΤιμολογίου[])-ROW(ΣτοιχείαΤιμολογίου[#Headers])), ROW(16:16)), MATCH($C$8, ΣτοιχείαΤιμολογίου[#Headers], 0)),\"\")","v":""},{"$f":"IFERROR(INDEX(ΣτοιχείαΤιμολογίου[],SMALL(IF(ΣτοιχείαΤιμολογίου[Αρ. τιμολογίου]=τιμολόγιοrng,ROW(ΣτοιχείαΤιμολογίου[])-ROW(ΣτοιχείαΤιμολογίου[#Headers])), ROW(16:16)), MATCH($D$8, ΣτοιχείαΤιμολογίου[#Headers], 0)),\"\")","v":""},{"$f":"IFERROR(INDEX(ΣτοιχείαΤιμολογίου[],SMALL(IF(ΣτοιχείαΤιμολογίου[Αρ. τιμολογίου]=τιμολόγιοrng,ROW(ΣτοιχείαΤιμολογίου[])-ROW(ΣτοιχείαΤιμολογίου[#Headers])), ROW(16:16)), MATCH($E$8, ΣτοιχείαΤιμολογίου[#Headers], 0)),\"\")","v":""},{"$f":"IFERROR(INDEX(ΣτοιχείαΤιμολογίου[],SMALL(IF(ΣτοιχείαΤιμολογίου[Αρ. τιμολογίου]=τιμολόγιοrng,ROW(ΣτοιχείαΤιμολογίου[])-ROW(ΣτοιχείαΤιμολογίου[#Headers])), ROW(16:16)), MATCH($F$8, ΣτοιχείαΤιμολογίου[#Headers], 0)),\"\")","v":""},""]
[null,{"$f":"IFERROR(INDEX(ΣτοιχείαΤιμολογίου[],SMALL(IF(ΣτοιχείαΤιμολογίου[Αρ. τιμολογίου]=τιμολόγιοrng,ROW(ΣτοιχείαΤιμολογίου[])-ROW(ΣτοιχείαΤιμολογίου[#Headers])), ROW(17:17)), MATCH($B$8, ΣτοιχείαΤιμολογίου[#Headers], 0)),\"\")","v":""},{"$f":"IFERROR(INDEX(ΣτοιχείαΤιμολογίου[],SMALL(IF(ΣτοιχείαΤιμολογίου[Αρ. τιμολογίου]=τιμολόγιοrng,ROW(ΣτοιχείαΤιμολογίου[])-ROW(ΣτοιχείαΤιμολογίου[#Headers])), ROW(17:17)), MATCH($C$8, ΣτοιχείαΤιμολογίου[#Headers], 0)),\"\")","v":""},{"$f":"IFERROR(INDEX(ΣτοιχείαΤιμολογίου[],SMALL(IF(ΣτοιχείαΤιμολογίου[Αρ. τιμολογίου]=τιμολόγιοrng,ROW(ΣτοιχείαΤιμολογίου[])-ROW(ΣτοιχείαΤιμολογίου[#Headers])), ROW(17:17)), MATCH($D$8, ΣτοιχείαΤιμολογίου[#Headers], 0)),\"\")","v":""},{"$f":"IFERROR(INDEX(ΣτοιχείαΤιμολογίου[],SMALL(IF(ΣτοιχείαΤιμολογίου[Αρ. τιμολογίου]=τιμολόγιοrng,ROW(ΣτοιχείαΤιμολογίου[])-ROW(ΣτοιχείαΤιμολογίου[#Headers])), ROW(17:17)), MATCH($E$8, ΣτοιχείαΤιμολογίου[#Headers], 0)),\"\")","v":""},{"$f":"IFERROR(INDEX(ΣτοιχείαΤιμολογίου[],SMALL(IF(ΣτοιχείαΤιμολογίου[Αρ. τιμολογίου]=τιμολόγιοrng,ROW(ΣτοιχείαΤιμολογίου[])-ROW(ΣτοιχείαΤιμολογίου[#Headers])), ROW(17:17)), MATCH($F$8, ΣτοιχείαΤιμολογίου[#Headers], 0)),\"\")","v":""},""]
[null,{"$f":"IFERROR(INDEX(ΣτοιχείαΤιμολογίου[],SMALL(IF(ΣτοιχείαΤιμολογίου[Αρ. τιμολογίου]=τιμολόγιοrng,ROW(ΣτοιχείαΤιμολογίου[])-ROW(ΣτοιχείαΤιμολογίου[#Headers])), ROW(18:18)), MATCH($B$8, ΣτοιχείαΤιμολογίου[#Headers], 0)),\"\")","v":""},{"$f":"IFERROR(INDEX(ΣτοιχείαΤιμολογίου[],SMALL(IF(ΣτοιχείαΤιμολογίου[Αρ. τιμολογίου]=τιμολόγιοrng,ROW(ΣτοιχείαΤιμολογίου[])-ROW(ΣτοιχείαΤιμολογίου[#Headers])), ROW(18:18)), MATCH($C$8, ΣτοιχείαΤιμολογίου[#Headers], 0)),\"\")","v":""},{"$f":"IFERROR(INDEX(ΣτοιχείαΤιμολογίου[],SMALL(IF(ΣτοιχείαΤιμολογίου[Αρ. τιμολογίου]=τιμολόγιοrng,ROW(ΣτοιχείαΤιμολογίου[])-ROW(ΣτοιχείαΤιμολογίου[#Headers])), ROW(18:18)), MATCH($D$8, ΣτοιχείαΤιμολογίου[#Headers], 0)),\"\")","v":""},{"$f":"IFERROR(INDEX(ΣτοιχείαΤιμολογίου[],SMALL(IF(ΣτοιχείαΤιμολογίου[Αρ. τιμολογίου]=τιμολόγιοrng,ROW(ΣτοιχείαΤιμολογίου[])-ROW(ΣτοιχείαΤιμολογίου[#Headers])), ROW(18:18)), MATCH($E$8, ΣτοιχείαΤιμολογίου[#Headers], 0)),\"\")","v":""},{"$f":"IFERROR(INDEX(ΣτοιχείαΤιμολογίου[],SMALL(IF(ΣτοιχείαΤιμολογίου[Αρ. τιμολογίου]=τιμολόγιοrng,ROW(ΣτοιχείαΤιμολογίου[])-ROW(ΣτοιχείαΤιμολογίου[#Headers])), ROW(18:18)), MATCH($F$8, ΣτοιχείαΤιμολογίου[#Headers], 0)),\"\")","v":""},""]
[null,{"$f":"IFERROR(INDEX(ΣτοιχείαΤιμολογίου[],SMALL(IF(ΣτοιχείαΤιμολογίου[Αρ. τιμολογίου]=τιμολόγιοrng,ROW(ΣτοιχείαΤιμολογίου[])-ROW(ΣτοιχείαΤιμολογίου[#Headers])), ROW(19:19)), MATCH($B$8, ΣτοιχείαΤιμολογίου[#Headers], 0)),\"\")","v":""},{"$f":"IFERROR(INDEX(ΣτοιχείαΤιμολογίου[],SMALL(IF(ΣτοιχείαΤιμολογίου[Αρ. τιμολογίου]=τιμολόγιοrng,ROW(ΣτοιχείαΤιμολογίου[])-ROW(ΣτοιχείαΤιμολογίου[#Headers])), ROW(19:19)), MATCH($C$8, ΣτοιχείαΤιμολογίου[#Headers], 0)),\"\")","v":""},{"$f":"IFERROR(INDEX(ΣτοιχείαΤιμολογίου[],SMALL(IF(ΣτοιχείαΤιμολογίου[Αρ. τιμολογίου]=τιμολόγιοrng,ROW(ΣτοιχείαΤιμολογίου[])-ROW(ΣτοιχείαΤιμολογίου[#Headers])), ROW(19:19)), MATCH($D$8, ΣτοιχείαΤιμολογίου[#Headers], 0)),\"\")","v":""},{"$f":"IFERROR(INDEX(ΣτοιχείαΤιμολογίου[],SMALL(IF(ΣτοιχείαΤιμολογίου[Αρ. τιμολογίου]=τιμολόγιοrng,ROW(ΣτοιχείαΤιμολογίου[])-ROW(ΣτοιχείαΤιμολογίου[#Headers])), ROW(19:19)), MATCH($E$8, ΣτοιχείαΤιμολογίου[#Headers], 0)),\"\")","v":""},{"$f":"IFERROR(INDEX(ΣτοιχείαΤιμολογίου[],SMALL(IF(ΣτοιχείαΤιμολογίου[Αρ. τιμολογίου]=τιμολόγιοrng,ROW(ΣτοιχείαΤιμολογίου[])-ROW(ΣτοιχείαΤιμολογίου[#Headers])), ROW(19:19)), MATCH($F$8, ΣτοιχείαΤιμολογίου[#Headers], 0)),\"\")","v":""},""]
[null,{"$f":"IFERROR(INDEX(ΣτοιχείαΤιμολογίου[],SMALL(IF(ΣτοιχείαΤιμολογίου[Αρ. τιμολογίου]=τιμολόγιοrng,ROW(ΣτοιχείαΤιμολογίου[])-ROW(ΣτοιχείαΤιμολογίου[#Headers])), ROW(20:20)), MATCH($B$8, ΣτοιχείαΤιμολογίου[#Headers], 0)),\"\")","v":""},{"$f":"IFERROR(INDEX(ΣτοιχείαΤιμολογίου[],SMALL(IF(ΣτοιχείαΤιμολογίου[Αρ. τιμολογίου]=τιμολόγιοrng,ROW(ΣτοιχείαΤιμολογίου[])-ROW(ΣτοιχείαΤιμολογίου[#Headers])), ROW(20:20)), MATCH($C$8, ΣτοιχείαΤιμολογίου[#Headers], 0)),\"\")","v":""},{"$f":"IFERROR(INDEX(ΣτοιχείαΤιμολογίου[],SMALL(IF(ΣτοιχείαΤιμολογίου[Αρ. τιμολογίου]=τιμολόγιοrng,ROW(ΣτοιχείαΤιμολογίου[])-ROW(ΣτοιχείαΤιμολογίου[#Headers])), ROW(20:20)), MATCH($D$8, ΣτοιχείαΤιμολογίου[#Headers], 0)),\"\")","v":""},{"$f":"IFERROR(INDEX(ΣτοιχείαΤιμολογίου[],SMALL(IF(ΣτοιχείαΤιμολογίου[Αρ. τιμολογίου]=τιμολόγιοrng,ROW(ΣτοιχείαΤιμολογίου[])-ROW(ΣτοιχείαΤιμολογίου[#Headers])), ROW(20:20)), MATCH($E$8, ΣτοιχείαΤιμολογίου[#Headers], 0)),\"\")","v":""},{"$f":"IFERROR(INDEX(ΣτοιχείαΤιμολογίου[],SMALL(IF(ΣτοιχείαΤιμολογίου[Αρ. τιμολογίου]=τιμολόγιοrng,ROW(ΣτοιχείαΤιμολογίου[])-ROW(ΣτοιχείαΤιμολογίου[#Headers])), ROW(20:20)), MATCH($F$8, ΣτοιχείαΤιμολογίου[#Headers], 0)),\"\")","v":""},""]
[null,{"$f":"IFERROR(INDEX(ΣτοιχείαΤιμολογίου[],SMALL(IF(ΣτοιχείαΤιμολογίου[Αρ. τιμολογίου]=τιμολόγιοrng,ROW(ΣτοιχείαΤιμολογίου[])-ROW(ΣτοιχείαΤιμολογίου[#Headers])), ROW(21:21)), MATCH($B$8, ΣτοιχείαΤιμολογίου[#Headers], 0)),\"\")","v":""},{"$f":"IFERROR(INDEX(ΣτοιχείαΤιμολογίου[],SMALL(IF(ΣτοιχείαΤιμολογίου[Αρ. τιμολογίου]=τιμολόγιοrng,ROW(ΣτοιχείαΤιμολογίου[])-ROW(ΣτοιχείαΤιμολογίου[#Headers])), ROW(21:21)), MATCH($C$8, ΣτοιχείαΤιμολογίου[#Headers], 0)),\"\")","v":""},{"$f":"IFERROR(INDEX(ΣτοιχείαΤιμολογίου[],SMALL(IF(ΣτοιχείαΤιμολογίου[Αρ. τιμολογίου]=τιμολόγιοrng,ROW(ΣτοιχείαΤιμολογίου[])-ROW(ΣτοιχείαΤιμολογίου[#Headers])), ROW(21:21)), MATCH($D$8, ΣτοιχείαΤιμολογίου[#Headers], 0)),\"\")","v":""},{"$f":"IFERROR(INDEX(ΣτοιχείαΤιμολογίου[],SMALL(IF(ΣτοιχείαΤιμολογίου[Αρ. τιμολογίου]=τιμολόγιοrng,ROW(ΣτοιχείαΤιμολογίου[])-ROW(ΣτοιχείαΤιμολογίου[#Headers])), ROW(21:21)), MATCH($E$8, ΣτοιχείαΤιμολογίου[#Headers], 0)),\"\")","v":""},{"$f":"IFERROR(INDEX(ΣτοιχείαΤιμολογίου[],SMALL(IF(ΣτοιχείαΤιμολογίου[Αρ. τιμολογίου]=τιμολόγιοrng,ROW(ΣτοιχείαΤιμολογίου[])-ROW(ΣτοιχείαΤιμολογίου[#Headers])), ROW(21:21)), MATCH($F$8, ΣτοιχείαΤιμολογίου[#Headers], 0)),\"\")","v":""},""]
[null,{"$f":"IFERROR(INDEX(ΣτοιχείαΤιμολογίου[],SMALL(IF(ΣτοιχείαΤιμολογίου[Αρ. τιμολογίου]=τιμολόγιοrng,ROW(ΣτοιχείαΤιμολογίου[])-ROW(ΣτοιχείαΤιμολογίου[#Headers])), ROW(22:22)), MATCH($B$8, ΣτοιχείαΤιμολογίου[#Headers], 0)),\"\")","v":""},{"$f":"IFERROR(INDEX(ΣτοιχείαΤιμολογίου[],SMALL(IF(ΣτοιχείαΤιμολογίου[Αρ. τιμολογίου]=τιμολόγιοrng,ROW(ΣτοιχείαΤιμολογίου[])-ROW(ΣτοιχείαΤιμολογίου[#Headers])), ROW(22:22)), MATCH($C$8, ΣτοιχείαΤιμολογίου[#Headers], 0)),\"\")","v":""},{"$f":"IFERROR(INDEX(ΣτοιχείαΤιμολογίου[],SMALL(IF(ΣτοιχείαΤιμολογίου[Αρ. τιμολογίου]=τιμολόγιοrng,ROW(ΣτοιχείαΤιμολογίου[])-ROW(ΣτοιχείαΤιμολογίου[#Headers])), ROW(22:22)), MATCH($D$8, ΣτοιχείαΤιμολογίου[#Headers], 0)),\"\")","v":""},{"$f":"IFERROR(INDEX(ΣτοιχείαΤιμολογίου[],SMALL(IF(ΣτοιχείαΤιμολογίου[Αρ. τιμολογίου]=τιμολόγιοrng,ROW(ΣτοιχείαΤιμολογίου[])-ROW(ΣτοιχείαΤιμολογίου[#Headers])), ROW(22:22)), MATCH($E$8, ΣτοιχείαΤιμολογίου[#Headers], 0)),\"\")","v":""},{"$f":"IFERROR(INDEX(ΣτοιχείαΤιμολογίου[],SMALL(IF(ΣτοιχείαΤιμολογίου[Αρ. τιμολογίου]=τιμολόγιοrng,ROW(ΣτοιχείαΤιμολογίου[])-ROW(ΣτοιχείαΤιμολογίου[#Headers])), ROW(22:22)), MATCH($F$8, ΣτοιχείαΤιμολογίου[#Headers], 0)),\"\")","v":""},""]
[null,{"$f":"IFERROR(INDEX(ΣτοιχείαΤιμολογίου[],SMALL(IF(ΣτοιχείαΤιμολογίου[Αρ. τιμολογίου]=τιμολόγιοrng,ROW(ΣτοιχείαΤιμολογίου[])-ROW(ΣτοιχείαΤιμολογίου[#Headers])), ROW(23:23)), MATCH($B$8, ΣτοιχείαΤιμολογίου[#Headers], 0)),\"\")","v":""},{"$f":"IFERROR(INDEX(ΣτοιχείαΤιμολογίου[],SMALL(IF(ΣτοιχείαΤιμολογίου[Αρ. τιμολογίου]=τιμολόγιοrng,ROW(ΣτοιχείαΤιμολογίου[])-ROW(ΣτοιχείαΤιμολογίου[#Headers])), ROW(23:23)), MATCH($C$8, ΣτοιχείαΤιμολογίου[#Headers], 0)),\"\")","v":""},{"$f":"IFERROR(INDEX(ΣτοιχείαΤιμολογίου[],SMALL(IF(ΣτοιχείαΤιμολογίου[Αρ. τιμολογίου]=τιμολόγιοrng,ROW(ΣτοιχείαΤιμολογίου[])-ROW(ΣτοιχείαΤιμολογίου[#Headers])), ROW(23:23)), MATCH($D$8, ΣτοιχείαΤιμολογίου[#Headers], 0)),\"\")","v":""},{"$f":"IFERROR(INDEX(ΣτοιχείαΤιμολογίου[],SMALL(IF(ΣτοιχείαΤιμολογίου[Αρ. τιμολογίου]=τιμολόγιοrng,ROW(ΣτοιχείαΤιμολογίου[])-ROW(ΣτοιχείαΤιμολογίου[#Headers])), ROW(23:23)), MATCH($E$8, ΣτοιχείαΤιμολογίου[#Headers], 0)),\"\")","v":""},{"$f":"IFERROR(INDEX(ΣτοιχείαΤιμολογίου[],SMALL(IF(ΣτοιχείαΤιμολογίου[Αρ. τιμολογίου]=τιμολόγιοrng,ROW(ΣτοιχείαΤιμολογίου[])-ROW(ΣτοιχείαΤιμολογίου[#Headers])), ROW(23:23)), MATCH($F$8, ΣτοιχείαΤιμολογίου[#Headers], 0)),\"\")","v":""},""]
[null,{"$f":"IFERROR(INDEX(ΣτοιχείαΤιμολογίου[],SMALL(IF(ΣτοιχείαΤιμολογίου[Αρ. τιμολογίου]=τιμολόγιοrng,ROW(ΣτοιχείαΤιμολογίου[])-ROW(ΣτοιχείαΤιμολογίου[#Headers])), ROW(24:24)), MATCH($B$8, ΣτοιχείαΤιμολογίου[#Headers], 0)),\"\")","v":""},{"$f":"IFERROR(INDEX(ΣτοιχείαΤιμολογίου[],SMALL(IF(ΣτοιχείαΤιμολογίου[Αρ. τιμολογίου]=τιμολόγιοrng,ROW(ΣτοιχείαΤιμολογίου[])-ROW(ΣτοιχείαΤιμολογίου[#Headers])), ROW(24:24)), MATCH($C$8, ΣτοιχείαΤιμολογίου[#Headers], 0)),\"\")","v":""},{"$f":"IFERROR(INDEX(ΣτοιχείαΤιμολογίου[],SMALL(IF(ΣτοιχείαΤιμολογίου[Αρ. τιμολογίου]=τιμολόγιοrng,ROW(ΣτοιχείαΤιμολογίου[])-ROW(ΣτοιχείαΤιμολογίου[#Headers])), ROW(24:24)), MATCH($D$8, ΣτοιχείαΤιμολογίου[#Headers], 0)),\"\")","v":""},{"$f":"IFERROR(INDEX(ΣτοιχείαΤιμολογίου[],SMALL(IF(ΣτοιχείαΤιμολογίου[Αρ. τιμολογίου]=τιμολόγιοrng,ROW(ΣτοιχείαΤιμολογίου[])-ROW(ΣτοιχείαΤιμολογίου[#Headers])), ROW(24:24)), MATCH($E$8, ΣτοιχείαΤιμολογίου[#Headers], 0)),\"\")","v":""},{"$f":"IFERROR(INDEX(ΣτοιχείαΤιμολογίου[],SMALL(IF(ΣτοιχείαΤιμολογίου[Αρ. τιμολογίου]=τιμολόγιοrng,ROW(ΣτοιχείαΤιμολογίου[])-ROW(ΣτοιχείαΤιμολογίου[#Headers])), ROW(24:24)), MATCH($F$8, ΣτοιχείαΤιμολογίου[#Headers], 0)),\"\")","v":""},""]
[null,{"$f":"IFERROR(INDEX(ΣτοιχείαΤιμολογίου[],SMALL(IF(ΣτοιχείαΤιμολογίου[Αρ. τιμολογίου]=τιμολόγιοrng,ROW(ΣτοιχείαΤιμολογίου[])-ROW(ΣτοιχείαΤιμολογίου[#Headers])), ROW(25:25)), MATCH($B$8, ΣτοιχείαΤιμολογίου[#Headers], 0)),\"\")","v":""},{"$f":"IFERROR(INDEX(ΣτοιχείαΤιμολογίου[],SMALL(IF(ΣτοιχείαΤιμολογίου[Αρ. τιμολογίου]=τιμολόγιοrng,ROW(ΣτοιχείαΤιμολογίου[])-ROW(ΣτοιχείαΤιμολογίου[#Headers])), ROW(25:25)), MATCH($C$8, ΣτοιχείαΤιμολογίου[#Headers], 0)),\"\")","v":""},{"$f":"IFERROR(INDEX(ΣτοιχείαΤιμολογίου[],SMALL(IF(ΣτοιχείαΤιμολογίου[Αρ. τιμολογίου]=τιμολόγιοrng,ROW(ΣτοιχείαΤιμολογίου[])-ROW(ΣτοιχείαΤιμολογίου[#Headers])), ROW(25:25)), MATCH($D$8, ΣτοιχείαΤιμολογίου[#Headers], 0)),\"\")","v":""},{"$f":"IFERROR(INDEX(ΣτοιχείαΤιμολογίου[],SMALL(IF(ΣτοιχείαΤιμολογίου[Αρ. τιμολογίου]=τιμολόγιοrng,ROW(ΣτοιχείαΤιμολογίου[])-ROW(ΣτοιχείαΤιμολογίου[#Headers])), ROW(25:25)), MATCH($E$8, ΣτοιχείαΤιμολογίου[#Headers], 0)),\"\")","v":""},{"$f":"IFERROR(INDEX(ΣτοιχείαΤιμολογίου[],SMALL(IF(ΣτοιχείαΤιμολογίου[Αρ. τιμολογίου]=τιμολόγιοrng,ROW(ΣτοιχείαΤιμολογίου[])-ROW(ΣτοιχείαΤιμολογίου[#Headers])), ROW(25:25)), MATCH($F$8, ΣτοιχείαΤιμολογίου[#Headers], 0)),\"\")","v":""},""]
[{"$nulls":5},"Μερικό άθροισμα τιμολογίου",{"$f":"SUM(ΤιμολόγιοΈργου[Τιμή])","v":{"v":2014,"d":"2,014.00 €"}}]
[{"$nulls":5},"Φορολογικός συντελεστής",{"$f":"VLOOKUP(τιμολόγιοrng,ΚύριαΤιμολόγια[],5)","v":{"v":0.0875,"d":"8.75%"}}]
[{"$nulls":5},"Φόρος πωλήσεων",{"$f":"G34*G35","v":{"v":176.225,"d":"176.23 €"}}]
[{"$nulls":5},"Άλλα",{"$f":"VLOOKUP(τιμολόγιοrng,ΚύριαΤιμολόγια[],6)","v":0}]
[null,{"$f":"\"Όλες οι επιταγές πληρωτέες σε \"&ΕπωνυμίαΕταιρείας&\".\"","v":"Όλες οι επιταγές πληρωτέες σε Επωνυμία εταιρείας."},{"$nulls":3},"Προκαταβολή",{"$f":"VLOOKUP(τιμολόγιοrng,ΚύριαΤιμολόγια[],7)","v":0}]
[null,"Το σύνολο είναι πληρωτέο σε <#> ημέρες. Οι εκπρόθεσμοι λογαριασμοί υπόκεινται σε χρέωση υπηρεσίας <#>% ανά μήνα.",{"$nulls":3},"ΣΥΝΟΛΟ",{"$f":"(G34+G36+G37)-G38","v":{"v":2190.225,"d":"2,190.23 €"}}]

{"sheet":"Πελάτες","index":1,"n_rows":6,"n_cols":12,"rows_kept":6}
[]
[null,null,"Πελάτες"]
[null,"Αναζήτηση","Εταιρεία #","Επωνυμία εταιρείας","Όνομα επαφής","Διεύθυνση","Πόλη","Νομός","Ταχυδρομικός κώδικας","Τηλέφωνο","Διεύθυνση ηλεκτρονικού ταχυδρομείου","Φαξ"]
[null,{"$f":"C4& \" - \"&D4","v":"1 - Tailspin Toys "},1,"Tailspin Toys ","Robert Lyon","Πανεπιστημίου 345","Λάρισα","Τ.Κ.","123456","432-555-0178","someone@example.com","432-555-0187"]
[null,"2 - Contoso, Ltd",2,"Contoso, Ltd","Sanjay Patel","Νίκης 567","Βόλος","ΤΚ","098765","432-555-0189","someone@example.com","432-555-0123"]
[null,"Σύνολα",{"$f":"\"Σύνολο πελατών: \"&SUBTOTAL(103,ΛίσταΠελατών[Εταιρεία '#])","v":"Σύνολο πελατών: 2"}]

{"sheet":"Τιμολόγια - Κύρια","index":2,"n_rows":6,"n_cols":11,"rows_kept":6}
[]
[null,"Τιμολόγια"]
[null,"Αρ. τιμολογίου","Εταιρεία","Ημερομηνία τιμολογίου","Περιγραφή έργου","Φορολογικός συντελεστής","Άλλα","Κατάθεση","Σύνολο λεπτομερειών","Σύνολο τιμολογίου","Σημειώσεις"]
[null,"3-456-1","1 - Tailspin Toys ",{"$f":"TODAY()","v":{"v":43675,"d":"4367500.00%"}},"Έργο 1",{"v":0.0875,"d":"8.75%"},{"v":100,"d":"100.00 €"},{"v":100,"d":"100.00 €"},{"$f":"SUMIF(ΣτοιχείαΤιμολογίου[Αρ. τιμολογίου],\"=\"&ΚύριαΤιμολόγια[[#This Row],[Αρ. τιμολογίου]],ΣτοιχείαΤιμολογίου[Σύνολο])","v":{"v":5200,"d":"5,200.00 €"}},{"$f":"(ΚύριαΤιμολόγια[[#This Row],[Σύνολο λεπτομερειών]]*(1+ΚύριαΤιμολόγια[[#This Row],[Φορολογικός συντελεστής]]))+ΚύριαΤιμολόγια[[#This Row],[Άλλα]]-ΚύριαΤιμολόγια[[#This Row],[Κατάθεση]]","v":{"v":5654.999999999999,"d":"5,655.00 €"}}]
[null,"3-456-2","2 - Contoso, Ltd",{"$f":"TODAY()+10","v":{"v":43685,"d":"4368500.00%"}},"Έργο 2",{"v":0.0875,"d":"8.75%"},null,null,{"$f":"SUMIF(ΣτοιχείαΤιμολογίου[Αρ. τιμολογίου],\"=\"&ΚύριαΤιμολόγια[[#This Row],[Αρ. τιμολογίου]],ΣτοιχείαΤιμολογίου[Σύνολο])","v":{"v":2014,"d":"2,014.00 €"}},{"$f":"(ΚύριαΤιμολόγια[[#This Row],[Σύνολο λεπτομερειών]]*(1+ΚύριαΤιμολόγια[[#This Row],[Φορολογικός συντελεστής]]))+ΚύριαΤιμολόγια[[#This Row],[Άλλα]]-ΚύριαΤιμολόγια[[#This Row],[Κατάθεση]]","v":{"v":2190.225,"d":"2,190.23 €"}}]
[null,"Σύνολα",{"$f":"\"Σύνολο τιμολογίων: \"&SUBTOTAL(103,ΚύριαΤιμολόγια[Αρ. τιμολογίου])","v":"Σύνολο τιμολογίων: 2"},{"$nulls":3},{"$f":"SUBTOTAL(109,ΚύριαΤιμολόγια[Άλλα])","v":{"v":100,"d":"100.00 €"}},{"$f":"SUBTOTAL(109,ΚύριαΤιμολόγια[Κατάθεση])","v":{"v":100,"d":"100.00 €"}},{"$f":"SUBTOTAL(109,ΚύριαΤιμολόγια[Σύνολο λεπτομερειών])","v":{"v":7214,"d":"7,214.00 €"}},{"$f":"SUBTOTAL(109,ΚύριαΤιμολόγια[Σύνολο τιμολογίου])","v":{"v":7845.2249999999985,"d":"7,845.23 €"}}]

{"sheet":"Λεπτομέρειες τιμολογίου","index":3,"n_rows":40,"n_cols":8,"rows_kept":40}
[]
[null,"Λεπτομέρειες τιμολογίου"]
[null,"Περιγραφή","Αρ. τιμολογίου","Είδος #","Ποσότητα","Τιμή μονάδας","Έκπτωση","Σύνολο"]
[null,"Τιμολόγιο 3-456-1 δεδομένα 1","3-456-1",1,1,{"v":1,"d":"1.00 €"},{"v":1,"d":"1.00 €"},{"$f":"(ΣτοιχείαΤιμολογίου[[#This Row],[Ποσότητα]]*ΣτοιχείαΤιμολογίου[[#This Row],[Τιμή μονάδας]])-ΣτοιχείαΤιμολογίου[[#This Row],[Έκπτωση]]","v":{"v":0,"d":"0.00 €"}}]
[null,"Τιμολόγιο 3-456-1 δεδομένα 2","3-456-1",2,2,{"v":2,"d":"2.00 €"},{"v":2,"d":"2.00 €"},{"$f":"(ΣτοιχείαΤιμολογίου[[#This Row],[Ποσότητα]]*ΣτοιχείαΤιμολογίου[[#This Row],[Τιμή μονάδας]])-ΣτοιχείαΤιμολογίου[[#This Row],[Έκπτωση]]","v":{"v":2,"d":"2.00 €"}}]
[null,"Τιμολόγιο 3-456-1 δεδομένα 3","3-456-1",3,3,{"v":3,"d":"3.00 €"},{"v":3,"d":"3.00 €"},{"$f":"(ΣτοιχείαΤιμολογίου[[#This Row],[Ποσότητα]]*ΣτοιχείαΤιμολογίου[[#This Row],[Τιμή μονάδας]])-ΣτοιχείαΤιμολογίου[[#This Row],[Έκπτωση]]","v":{"v":6,"d":"6.00 €"}}]
[null,"Τιμολόγιο 3-456-1 δεδομένα 4","3-456-1",4,4,{"v":4,"d":"4.00 €"},{"v":4,"d":"4.00 €"},{"$f":"(ΣτοιχείαΤιμολογίου[[#This Row],[Ποσότητα]]*ΣτοιχείαΤιμολογίου[[#This Row],[Τιμή μονάδας]])-ΣτοιχείαΤιμολογίου[[#This Row],[Έκπτωση]]","v":{"v":12,"d":"12.00 €"}}]
[null,"Τιμολόγιο 3-456-1 δεδομένα 5","3-456-1",5,5,{"v":5,"d":"5.00 €"},{"v":5,"d":"5.00 €"},{"$f":"(ΣτοιχείαΤιμολογίου[[#This Row],[Ποσότητα]]*ΣτοιχείαΤιμολογίου[[#This Row],[Τιμή μονάδας]])-ΣτοιχείαΤιμολογίου[[#This Row],[Έκπτωση]]","v":{"v":20,"d":"20.00 €"}}]
[null,"Τιμολόγιο 3-456-1 δεδομένα 6","3-456-1",6,6,{"v":6,"d":"6.00 €"},{"v":6,"d":"6.00 €"},{"$f":"(ΣτοιχείαΤιμολογίου[[#This Row],[Ποσότητα]]*ΣτοιχείαΤιμολογίου[[#This Row],[Τιμή μονάδας]])-ΣτοιχείαΤιμολογίου[[#This Row],[Έκπτωση]]","v":{"v":30,"d":"30.00 €"}}]
[null,"Τιμολόγιο 3-456-1 δεδομένα 7","3-456-1",7,7,{"v":7,"d":"7.00 €"},{"v":7,"d":"7.00 €"},{"$f":"(ΣτοιχείαΤιμολογίου[[#This Row],[Ποσότητα]]*ΣτοιχείαΤιμολογίου[[#This Row],[Τιμή μονάδας]])-ΣτοιχείαΤιμολογίου[[#This Row],[Έκπτωση]]","v":{"v":42,"d":"42.00 €"}}]
[null,"Τιμολόγιο 3-456-1 δεδομένα 8","3-456-1",8,8,{"v":8,"d":"8.00 €"},{"v":8,"d":"8.00 €"},{"$f":"(ΣτοιχείαΤιμολογίου[[#This Row],[Ποσότητα]]*ΣτοιχείαΤιμολογίου[[#This Row],[Τιμή μονάδας]])-ΣτοιχείαΤιμολογίου[[#This Row],[Έκπτωση]]","v":{"v":56,"d":"56.00 €"}}]
[null,"Τιμολόγιο 3-456-1 δεδομένα 9","3-456-1",9,9,{"v":9,"d":"9.00 €"},{"v":9,"d":"9.00 €"},{"$f":"(ΣτοιχείαΤιμολογίου[[#This Row],[Ποσότητα]]*ΣτοιχείαΤιμολογίου[[#This Row],[Τιμή μονάδας]])-ΣτοιχείαΤιμολογίου[[#This Row],[Έκπτωση]]","v":{"v":72,"d":"72.00 €"}}]
[null,"Τιμολόγιο 3-456-1 δεδομένα 10","3-456-1",10,10,{"v":10,"d":"10.00 €"},{"v":10,"d":"10.00 €"},{"$f":"(ΣτοιχείαΤιμολογίου[[#This Row],[Ποσότητα]]*ΣτοιχείαΤιμολογίου[[#This Row],[Τιμή μονάδας]])-ΣτοιχείαΤιμολογίου[[#This Row],[Έκπτωση]]","v":{"v":90,"d":"90.00 €"}}]
[null,"Τιμολόγιο 3-456-1 δεδομένα 11","3-456-1",11,11,{"v":11,"d":"11.00 €"},{"v":11,"d":"11.00 €"},{"$f":"(ΣτοιχείαΤιμολογίου[[#This Row],[Ποσότητα]]*ΣτοιχείαΤιμολογίου[[#This Row],[Τιμή μονάδας]])-ΣτοιχείαΤιμολογίου[[#This Row],[Έκπτωση]]","v":{"v":110,"d":"110.00 €"}}]
[null,"Τιμολόγιο 3-456-1 δεδομένα 12","3-456-1",12,12,{"v":12,"d":"12.00 €"},{"v":12,"d":"12.00 €"},{"$f":"(ΣτοιχείαΤιμολογίου[[#This Row],[Ποσότητα]]*ΣτοιχείαΤιμολογίου[[#This Row],[Τιμή μονάδας]])-ΣτοιχείαΤιμολογίου[[#This Row],[Έκπτωση]]","v":{"v":132,"d":"132.00 €"}}]
[null,"Τιμολόγιο 3-456-1 δεδομένα 13","3-456-1",13,13,{"v":13,"d":"13.00 €"},{"v":13,"d":"13.00 €"},{"$f":"(ΣτοιχείαΤιμολογίου[[#This Row],[Ποσότητα]]*ΣτοιχείαΤιμολογίου[[#This Row],[Τιμή μονάδας]])-ΣτοιχείαΤιμολογίου[[#This Row],[Έκπτωση]]","v":{"v":156,"d":"156.00 €"}}]
[null,"Τιμολόγιο 3-456-1 δεδομένα 14","3-456-1",14,14,{"v":14,"d":"14.00 €"},{"v":14,"d":"14.00 €"},{"$f":"(ΣτοιχείαΤιμολογίου[[#This Row],[Ποσότητα]]*ΣτοιχείαΤιμολογίου[[#This Row],[Τιμή μονάδας]])-ΣτοιχείαΤιμολογίου[[#This Row],[Έκπτωση]]","v":{"v":182,"d":"182.00 €"}}]
[null,"Τιμολόγιο 3-456-1 δεδομένα 15","3-456-1",15,15,{"v":15,"d":"15.00 €"},{"v":15,"d":"15.00 €"},{"$f":"(ΣτοιχείαΤιμολογίου[[#This Row],[Ποσότητα]]*ΣτοιχείαΤιμολογίου[[#This Row],[Τιμή μονάδας]])-ΣτοιχείαΤιμολογίου[[#This Row],[Έκπτωση]]","v":{"v":210,"d":"210.00 €"}}]
[null,"Τιμολόγιο 3-456-1 δεδομένα 16","3-456-1",16,16,{"v":16,"d":"16.00 €"},{"v":16,"d":"16.00 €"},{"$f":"(ΣτοιχείαΤιμολογίου[[#This Row],[Ποσότητα]]*ΣτοιχείαΤιμολογίου[[#This Row],[Τιμή μονάδας]])-ΣτοιχείαΤιμολογίου[[#This Row],[Έκπτωση]]","v":{"v":240,"d":"240.00 €"}}]
[null,"Τιμολόγιο 3-456-1 δεδομένα 17","3-456-1",17,17,{"v":17,"d":"17.00 €"},{"v":17,"d":"17.00 €"},{"$f":"(ΣτοιχείαΤιμολογίου[[#This Row],[Ποσότητα]]*ΣτοιχείαΤιμολογίου[[#This Row],[Τιμή μονάδας]])-ΣτοιχείαΤιμολογίου[[#This Row],[Έκπτωση]]","v":{"v":272,"d":"272.00 €"}}]
[null,"Τιμολόγιο 3-456-1 δεδομένα 18","3-456-1",18,18,{"v":18,"d":"18.00 €"},{"v":18,"d":"18.00 €"},{"$f":"(ΣτοιχείαΤιμολογίου[[#This Row],[Ποσότητα]]*ΣτοιχείαΤιμολογίου[[#This Row],[Τιμή μονάδας]])-ΣτοιχείαΤιμολογίου[[#This Row],[Έκπτωση]]","v":{"v":306,"d":"306.00 €"}}]
[null,"Τιμολόγιο 3-456-1 δεδομένα 19","3-456-1",19,19,{"v":19,"d":"19.00 €"},{"v":19,"d":"19.00 €"},{"$f":"(ΣτοιχείαΤιμολογίου[[#This Row],[Ποσότητα]]*ΣτοιχείαΤιμολογίου[[#This Row],[Τιμή μονάδας]])-ΣτοιχείαΤιμολογίου[[#This Row],[Έκπτωση]]","v":{"v":342,"d":"342.00 €"}}]
[null,"Τιμολόγιο 3-456-1 δεδομένα 20","3-456-1",20,20,{"v":20,"d":"20.00 €"},{"v":20,"d":"20.00 €"},{"$f":"(ΣτοιχείαΤιμολογίου[[#This Row],[Ποσότητα]]*ΣτοιχείαΤιμολογίου[[#This Row],[Τιμή μονάδας]])-ΣτοιχείαΤιμολογίου[[#This Row],[Έκπτωση]]","v":{"v":380,"d":"380.00 €"}}]
[null,"Τιμολόγιο 3-456-1 δεδομένα 21","3-456-1",21,21,{"v":21,"d":"21.00 €"},{"v":21,"d":"21.00 €"},{"$f":"(ΣτοιχείαΤιμολογίου[[#This Row],[Ποσότητα]]*ΣτοιχείαΤιμολογίου[[#This Row],[Τιμή μονάδας]])-ΣτοιχείαΤιμολογίου[[#This Row],[Έκπτωση]]","v":{"v":420,"d":"420.00 €"}}]
[null,"Τιμολόγιο 3-456-1 δεδομένα 22","3-456-1",22,22,{"v":22,"d":"22.00 €"},{"v":22,"d":"22.00 €"},{"$f":"(ΣτοιχείαΤιμολογίου[[#This Row],[Ποσότητα]]*ΣτοιχείαΤιμολογίου[[#This Row],[Τιμή μονάδας]])-ΣτοιχείαΤιμολογίου[[#This Row],[Έκπτωση]]","v":{"v":462,"d":"462.00 €"}}]
[null,"Τιμολόγιο 3-456-1 δεδομένα 23","3-456-1",23,23,{"v":23,"d":"23.00 €"},{"v":23,"d":"23.00 €"},{"$f":"(ΣτοιχείαΤιμολογίου[[#This Row],[Ποσότητα]]*ΣτοιχείαΤιμολογίου[[#This Row],[Τιμή μονάδας]])-ΣτοιχείαΤιμολογίου[[#This Row],[Έκπτωση]]","v":{"v":506,"d":"506.00 €"}}]
[null,"Τιμολόγιο 3-456-1 δεδομένα 24","3-456-1",24,24,{"v":24,"d":"24.00 €"},{"v":24,"d":"24.00 €"},{"$f":"(ΣτοιχείαΤιμολογίου[[#This Row],[Ποσότητα]]*ΣτοιχείαΤιμολογίου[[#This Row],[Τιμή μονάδας]])-ΣτοιχείαΤιμολογίου[[#This Row],[Έκπτωση]]","v":{"v":552,"d":"552.00 €"}}]
[null,"Τιμολόγιο 3-456-1 δεδομένα 25","3-456-1",25,25,{"v":25,"d":"25.00 €"},{"v":25,"d":"25.00 €"},{"$f":"(ΣτοιχείαΤιμολογίου[[#This Row],[Ποσότητα]]*ΣτοιχείαΤιμολογίου[[#This Row],[Τιμή μονάδας]])-ΣτοιχείαΤιμολογίου[[#This Row],[Έκπτωση]]","v":{"v":600,"d":"600.00 €"}}]
[null,"Τιμολόγιο 3-456-2 δεδομένα 1","3-456-2","Z4567",39,{"v":5,"d":"5.00 €"},null,{"$f":"(ΣτοιχείαΤιμολογίου[[#This Row],[Ποσότητα]]*ΣτοιχείαΤιμολογίου[[#This Row],[Τιμή μονάδας]])-ΣτοιχείαΤιμολογίου[[#This Row],[Έκπτωση]]","v":{"v":195,"d":"195.00 €"}}]
[null,"Τιμολόγιο 3-456-2 δεδομένα 2","3-456-2","Z4568",40,{"v":4,"d":"4.00 €"},{"v":5,"d":"5.00 €"},{"$f":"(ΣτοιχείαΤιμολογίου[[#This Row],[Ποσότητα]]*ΣτοιχείαΤιμολογίου[[#This Row],[Τιμή μονάδας]])-ΣτοιχείαΤιμολογίου[[#This Row],[Έκπτωση]]","v":{"v":155,"d":"155.00 €"}}]
[null,"Τιμολόγιο 3-456-2 δεδομένα 3","3-456-2","Z4569",30,{"v":6,"d":"6.00 €"},{"v":7,"d":"7.00 €"},{"$f":"(ΣτοιχείαΤιμολογίου[[#This Row],[Ποσότητα]]*ΣτοιχείαΤιμολογίου[[#This Row],[Τιμή μονάδας]])-ΣτοιχείαΤιμολογίου[[#This Row],[Έκπτωση]]","v":{"v":173,"d":"173.00 €"}}]
[null,"Τιμολόγιο 3-456-2 δεδομένα 4","3-456-2","Z4570",40,{"v":7,"d":"7.00 €"},null,{"$f":"(ΣτοιχείαΤιμολογίου[[#This Row],[Ποσότητα]]*ΣτοιχείαΤιμολογίου[[#This Row],[Τιμή μονάδας]])-ΣτοιχείαΤιμολογίου[[#This Row],[Έκπτωση]]","v":{"v":280,"d":"280.00 €"}}]
[null,"Τιμολόγιο 3-456-2 δεδομένα 5","3-456-2","Z4571",10,{"v":4,"d":"4.00 €"},null,{"$f":"(ΣτοιχείαΤιμολογίου[[#This Row],[Ποσότητα]]*ΣτοιχείαΤιμολογίου[[#This Row],[Τιμή μονάδας]])-ΣτοιχείαΤιμολογίου[[#This Row],[Έκπτωση]]","v":{"v":40,"d":"40.00 €"}}]
[null,"Τιμολόγιο 3-456-2 δεδομένα 6","3-456-2","Z4572",5,{"v":8,"d":"8.00 €"},null,{"$f":"(ΣτοιχείαΤιμολογίου[[#This Row],[Ποσότητα]]*ΣτοιχείαΤιμολογίου[[#This Row],[Τιμή μονάδας]])-ΣτοιχείαΤιμολογίου[[#This Row],[Έκπτωση]]","v":{"v":40,"d":"40.00 €"}}]
[null,"Τιμολόγιο 3-456-2 δεδομένα 7","3-456-2","Z4573",70,{"v":6,"d":"6.00 €"},null,{"$f":"(ΣτοιχείαΤιμολογίου[[#This Row],[Ποσότητα]]*ΣτοιχείαΤιμολογίου[[#This Row],[Τιμή μονάδας]])-ΣτοιχείαΤιμολογίου[[#This Row],[Έκπτωση]]","v":{"v":420,"d":"420.00 €"}}]
[null,"Τιμολόγιο 3-456-2 δεδομένα 8","3-456-2","Z4574",25,{"v":4,"d":"4.00 €"},null,{"$f":"(ΣτοιχείαΤιμολογίου[[#This Row],[Ποσότητα]]*ΣτοιχείαΤιμολογίου[[#This Row],[Τιμή μονάδας]])-ΣτοιχείαΤιμολογίου[[#This Row],[Έκπτωση]]","v":{"v":100,"d":"100.00 €"}}]
[null,"Τιμολόγιο 3-456-2 δεδομένα 9","3-456-2","Z4575",5,{"v":7,"d":"7.00 €"},{"v":3,"d":"3.00 €"},{"$f":"(ΣτοιχείαΤιμολογίου[[#This Row],[Ποσότητα]]*ΣτοιχείαΤιμολογίου[[#This Row],[Τιμή μονάδας]])-ΣτοιχείαΤιμολογίου[[#This Row],[Έκπτωση]]","v":{"v":32,"d":"32.00 €"}}]
[null,"Τιμολόγιο 3-456-2 δεδομένα 10","3-456-2","Z4576",80,{"v":1,"d":"1.00 €"},null,{"$f":"(ΣτοιχείαΤιμολογίου[[#This Row],[Ποσότητα]]*ΣτοιχείαΤιμολογίου[[#This Row],[Τιμή μονάδας]])-ΣτοιχείαΤιμολογίου[[#This Row],[Έκπτωση]]","v":{"v":80,"d":"80.00 €"}}]
[null,"Τιμολόγιο 3-456-2 δεδομένα 11","3-456-2","Z4577",65,{"v":7,"d":"7.00 €"},null,{"$f":"(ΣτοιχείαΤιμολογίου[[#This Row],[Ποσότητα]]*ΣτοιχείαΤιμολογίου[[#This Row],[Τιμή μονάδας]])-ΣτοιχείαΤιμολογίου[[#This Row],[Έκπτωση]]","v":{"v":455,"d":"455.00 €"}}]
[null,"Τιμολόγιο 3-456-2 δεδομένα 12","3-456-2","Z4578",44,{"v":1,"d":"1.00 €"},null,{"$f":"(ΣτοιχείαΤιμολογίου[[#This Row],[Ποσότητα]]*ΣτοιχείαΤιμολογίου[[#This Row],[Τιμή μονάδας]])-ΣτοιχείαΤιμολογίου[[#This Row],[Έκπτωση]]","v":{"v":44,"d":"44.00 €"}}]

{"sheet":"Πληροφορίες για αυτήν την παρακ","index":4,"n_rows":40,"n_cols":3,"rows_kept":40,"merged":[[3,1,3,7],[4,1,4,7],[5,1,5,7],[6,1,6,7],[7,2,7,7],[8,2,8,7],[9,2,9,7],[10,2,10,7],[11,2,11,7],[12,1,12,7],[13,2,13,3],[14,2,14,7],[15,1,15,7],[16,2,16,7],[17,2,17,7],[18,2,18,7],[19,2,19,7],[20,2,20,7],[21,2,21,7],[22,1,22,7],[23,1,23,7],[24,2,24,7],[25,2,25,7],[26,2,26,7],[27,2,27,7],[28,1,28,7],[29,1,29,7],[30,2,30,7],[31,2,31,7],[32,2,32,7],[33,2,33,7],[34,2,34,7],[36,2,36,7],[37,2,37,7],[38,2,38,7],[39,2,39,7]]}
[null,"Πληροφορίες για αυτήν την παρακ"]
[]
[]
[null,"Η παρακολούθηση τιμολογίου έχει σχεδιαστεί για να διατηρεί ένα ιστορικό πελατών, τιμολογίων καθώς και λεπτομερή στοιχεία των τιμολογίων, ώστε να μπορείτε να αποθηκεύετε πολλά τιμολόγια χωρίς να δημιουργείτε πολλά αρχεία. Μπορείτε επίσης να χρησιμοποιήσετε το πρότυπο \"Παρακολούθηση τιμολογίου\" για να αναλύσετε δεδομένα που έχουν τιμολογηθεί στο παρελθόν. Για παράδειγμα, μπορείτε να δείτε όλα τα τιμολόγια για έναν πελάτη, για ένα συγκεκριμένο έργο ή για να δείτε όλα τα τιμολόγια για τον τελευταίο μήνα, τον τελευταίο χρόνο και πολλά άλλα."]
[null,"Πριν ξεκινήσετε, ρίξτε μια ματιά στα δείγματα δεδομένων που παρέχονται. Στο δελτίο τιμολογίου, επιλέξτε το κελί που βρίσκεται στα δεξιά του τιμολογίου # (κελί L8) και θα εμφανιστεί μια αναπτυσσόμενη λίστα. Επιλέξτε το αναπτυσσόμενο βέλος και, στη συνέχεια, επιλέξτε ένα δείγμα τιμολογίου. Παρατηρήστε ότι όλες οι πληροφορίες τιμολογίου αλλάζουν αυτόματα ώστε να απεικονίζουν το επιλεγμένο τιμολόγιο. Τώρα, δείτε τα φύλλα \"Πελάτες\", \"Τιμολόγια - κύρια\" και \"Λεπτομέρειες τιμολογίου\". Κάθε ένα από αυτά τα φύλλα παρέχουν πληροφορίες στο τιμολόγιο και τυχόν αλλαγές που κάνετε θα ενημερώνονται αυτόματα. "]
[null,"Πώς μπορώ να ξεκινήσω;"]
[null,"Τροποποιήστε το φύλλο τιμολογίου, ώστε να αντικατοπτρίζει τις πληροφορίες της εταιρείας σας, ακολουθώντας τα παρακάτω βήματα:"]
[null,"1.","Μεταβείτε στο φύλλο Τιμολόγιο και στην καρτέλα Αναθεώρησηστην ομάδαΠροστασία, επιλέξτεΚατάργηση προστασίας φύλλου. "]
[null,null,"Σημείωση: Το φύλλο τιμολογίου προστατεύεται για να σας βοηθήσει να αποφύγετε ακούσιες αλλαγές, καθώς, όπως αναφέρθηκε προηγουμένως, η πλειονότητα των δεδομένων σε αυτό το φύλλο έχει τραβηχτεί από όλα τα άλλα φύλλα του βιβλίου εργασίας. "]
[null,"2.","Προσαρμόστε την επικεφαλίδα τιμολογίου πληκτρολογώντας την επωνυμία της εταιρείας σας, τη διεύθυνση, την πόλη, τον ταχ. κώδικα, τη διεύθυνση ηλεκτρονικού ταχυδρομείου, την τοποθεσία web και ούτω καθεξής. Στο κάτω μέρος του τιμολογίου (σειρά 43), τροποποιήστε τις οδηγίες πληρωμής. "]
[null,null,"Σημαντικό! Μην τροποποιείτε τις πληροφορίες χρέωσης ή τιμολογίου. Όλα αυτά τα κελιά έχουν τύπους που θα ενημερώσουν αυτόματα το τιμολόγιο, όπως σημειώνεται στην Σχετικά με Πληροφορίες για αυτήν την παρακ.  "]
[null,"3.","(Προαιρετικό) Τροποποιήστε τα χρώματα σε ολόκληρο το βιβλίο εργασίας: Στην καρτέλα Διάταξη σελίδας, στην ομάδαΘέματα, επιλέξτε Χρώματα και επιλέξτε ένα άλλο σύνολο χρώματος θέματος από τη συλλογή χρωμάτων. "]
[null,"Συμβουλή: Δημιουργήστε ένα προσαρμοσμένο χρώμα θέματος που θα συμφωνεί με την επωνυμία της εταιρείας σας! Για να το κάνετε αυτό, στην καρτέλα Διάταξη σελίδας, στην ομάδα Θέματα, επιλέξτε Χρώματα και, στη συνέχεια, επιλέξτε Προσαρμογή χρωμάτων. Για περισσότερες πληροφορίες σχετικά με τη δημιουργία ενός προσαρμοσμένου συνόλου χρωμάτων, δείτε το ακόλουθο θέμα της Βοήθειας: "]
[null,null,"Προσαρμόστε ένα θέμα εγγράφου."]
[null,"4.","Αφού κάνετε τις αλλαγές που θέλετε, επιστρέψτε στο φύλλο τιμολογίου και στην καρτέλα αναθεώρηση, στην ομάδα αλλαγές, επιλέξτε προστασία φύλλου και, στη συνέχεια, επιλέξτε OK. Όταν το φύλλο τιμολογίου είναι προστατευμένο, το μόνο κελί που μπορείτε να επιλέξετε είναι το κελί με αναπτυσσόμενη λίστα Αρ. Τιμολογίου."]
[null,"Πώς μπορώ να δημιουργήσω ένα τιμολόγιο;"]
[null,"1.","Στο φύλλο \"Πελάτες\", εισαγάγετε πληροφορίες πελατών, όπως την επωνυμία και τη διεύθυνση της εταιρείας. Σημειώστε ότι η Εταιρεία # είναι μια σημαντική καταχώρηση καθώς παρέχει ένα μοναδικό αναγνωριστικό για κάθε εταιρεία που χρησιμοποιείται σε όλη τη διάρκεια της παρακολούθησης τιμολογίου. Σημειώστε επίσης ότι χρειάζεται να προσθέσετε μια εταιρεία μόνο μία φορά. Για τα επόμενα τιμολόγια στην ίδια εταιρεία, μπορείτε να παραλείψετε αυτό το βήμα. "]
[null,null,"Σημείωση: Εάν εκχωρήσετε τον ίδιο αριθμό σε περισσότερες από μία εταιρείες ή εισαγάγετε την ίδια επωνυμία εταιρείας περισσότερες από μία φορές, οι καταχωρήσεις θα γίνουν κόκκινες για να σας ειδοποιήσουν για την αλληλεπικάλυψη. "]
[null,"2.","Στο φύλλο Κύριο Τιμολόγιο, εισαγάγετε τις κύριες πληροφορίες για το τιμολόγιό σας, όπως Αρ. Τιμολογίου, την ημερομηνία του τιμολογίου και την περιγραφή του έργου. Σημειώστε ότι η Εταιρεία # και ο Αρ. Τιμολογίου είναι μια σημαντική καταχώρηση καθώς παρέχει ένα μοναδικό αναγνωριστικό για κάθε εταιρεία που χρησιμοποιείται σε όλη τη διάρκεια της παρακολούθησης τιμολογίου. Μια άλλη σημαντική καταχώρηση είναι η Eταιρεία. Όταν επιλέγετε μια εταιρεία από την αναπτυσσόμενη λίστα με την οποία συσχετίζετε το τιμολόγιό σας με αυτή την εταιρεία. Στη συνέχεια, όταν επιλέγετε έναν αριθμό τιμολογίου στο δελτίο τιμολογίου, οι πληροφορίες της εταιρείας, όπως η επωνυμία και η διεύθυνση της εταιρείας, θα συμπληρώνονται αυτόματα στο τιμολόγιο."]
[null,null,"Σημείωση: Εάν εκχωρήσετε τον ίδιο αριθμό σε περισσότερες από ένα τιμολόγιο, οι καταχωρήσεις θα γίνουν κόκκινες για να σας ειδοποιήσουν για την αλληλεπικάλυψη. "]
[null,"3.","Στο φύλλο λεπτομερειών τιμολογίου, εισαγάγετε τις λεπτομέρειες για το τιμολόγιό σας, όπως μια περιγραφή στοιχείου, το στοιχείο #, την ποσότητα και την τιμή μονάδας. Η αναπτυσσόμενη λίστα αριθμού τιμολογίου παρέχει μια λίστα με τα τιμολόγια που εισαγάγατε στο κύριο Τιμολόγιο για να διευκολύνετε την καταχώρηση δεδομένων. Παρόμοια με την εταιρεία # στο προηγούμενο βήμα, το τιμολόγιο # συσχετίζει αυτό το στοιχείο λεπτομερειών με ένα συγκεκριμένο τιμολόγιο. Όταν επιλέγετε ένα τιμολόγιο # στο φύλλο \"Τιμολόγιο\" από την αναπτυσσόμενη λίστα \"Τιμολόγιο\", θα εμφανίζονται τα στοιχεία λεπτομερειών τιμολογίου που σχετίζονται με αυτό το τιμολόγιο."]
[null,null,"Σημείωση: Περιορίζεστε σε 25 στοιχεία λεπτομερειών ανά τιμολόγιο. Εάν προστίθενται περισσότερα από 25 στοιχεία, όλες οι αντίστοιχες καταχωρήσεις θα γίνουν κόκκινες για να σας ειδοποιήσουν για αυτόν τον περιορισμό. Εάν έχετε περισσότερα από 25 στοιχεία τιμολογίου, θα πρέπει να δημιουργήσετε ένα δεύτερο τιμολόγιο. "]
[null,"Πώς μπορώ να προσθέσω περισσότερους πελάτες, τιμολόγια και λεπτομέρειες για τιμολόγια;"]
[null,"Τα δεδομένα για πελάτες, τιμολόγια και λεπτομέρειες τιμολογίου αποθηκεύονται σε πίνακες του Excel. Όταν προσθέτετε μια νέα γραμμή σε έναν πίνακα, η γραμμή που μόλις προστέθηκε θα μορφοποιηθεί αυτόματα και τυχόν υπολογισμοί θα αντιγραφούν. Για να προσθέσετε νέες γραμμές πίνακα, κάντε ένα από τα εξής:"]
[null,"● ","Εάν ο πίνακας δεν διαθέτει μια Γραμμή αθροίσματος, ξεκινήστε να πληκτρολογείτε κάτω από τον πίνακα και εκείνος θα επεκταθεί αυτόματα, μόλις πατήσετε το πλήκτρο \"Enter\" ή \"Tab\"."]
[null,"● ","Τοποθετήστε τον δείκτη του κελιού στο τελευταίο κελί πάνω από τη Γραμμή αθροίσματος, όπως στον πίνακα Τιμολόγια στο κελί Σημειώσεις του τελευταίου τιμολογίου και, στη συνέχεια, πατήστε το πλήκτρο \"Tab\"."]
[null,"● ","Στην Κεντρική καρτέλα, στην ομάδα Κελιά, επιλέξτε Εισαγωγή, και έπειτα επιλέξτε Γραμμών πίνακα επάνω ή Γραμμών πίνακα κάτω. "]
[null,"● ","Στην κάτω δεξιά γωνία του πίνακα, τοποθετήστε τον δείκτη του ποντικιού στη λαβή αλλαγής μεγέθους πίνακα και σύρετέ την προς τα κάτω, για να αυξήσετε τον αριθμό των διαθέσιμων γραμμών του πίνακα."]
[null,"Πώς μπορώ να αναλύσω τις λεπτομέρειες του τιμολογίου μου;"]
[null,"Όπως σημειώνεται στην ενότητα πληροφορίες για την παρακολούθηση τιμολογίου, αφού έχετε εισαγάγει διάφορα τιμολόγια, μπορείτε να δείτε μια λίστα με όλα τα τιμολόγια για ένα συγκεκριμένο πελάτη, το έργο, ένα καθορισμένο χρονικό διάστημα και πολλά άλλα. Αυτός ο τύπος ανάλυσης ολοκληρώνεται με ένα φίλτρο που σας επιτρέπει να περιορίσετε γρήγορα μια λίστα δεδομένων. Για να αποκτήσετε πρόσβαση σε ένα φίλτρο στους πίνακες πελάτες, τιμολόγια ή λεπτομέρειες τιμολογίου, επιλέξτε ένα αναπτυσσόμενο βέλος δίπλα σε οποιοδήποτε όνομα πεδίου πίνακα. Θα εμφανιστεί ένα παράθυρο φίλτρων που θα σας παρέχει διάφορες επιλογές φιλτραρίσματος. Εδώ θα βρείτε μερικά παραδείγματα φιλτραρίσματος για να σας βοηθήσουν να ξεκινήσετε:"]
[null,"● ","Για να δείτε το συνολικό ποσό που έχετε τιμολογεί ως συγκεκριμένο πελάτη: Στο φύλλο Κύριο Τιμολόγιο, στα δεξιά του πεδίου \"Εταιρεία\", επιλέξτε το αναπτυσσόμενο βέλος. Στο παράθυρο φίλτρων, κάντε κλικ στην Επιλογή όλων για να καταργήσετε την επιλογή όλων των εταιρειών, επιλέξτε την εταιρεία που θέλετε και, στη συνέχεια, επιλέξτε OK. "]
[null,null,"Συμβουλή: Στο παράθυρο Φίλτρο μπορείτε επίσης να πληκτρολογήσετε το όνομα του πελάτη στο πλαίσιο κειμένου Αναζήτηση για να αναζητήσετε εύκολα τη διαθέσιμη λίστα."]
[null,"● ","Για να δείτε όλα τα τιμολόγια για συγκεκριμένο πελάτη και συγκεκριμένο έργο: Ξεκινήστε με φιλτράρισμα για τον πελάτη που θέλετε, χρησιμοποιώντας τα βήματα που παρέχονται στο προηγούμενο παράδειγμα. Στη συνέχεια, στα δεξιά του Έργου #, επιλέξτε το αναπτυσσόμενο βέλος. Στο παράθυρο φίλτρων, επιλέξτε το έργο ή τα έργα που θέλετε και, στη συνέχεια, επιλέξτε OK. "]
[null,"● ","Για να δείτε όλα τα τιμολόγια για τον προηγούμενο μήνα: Στο φύλλο Κύριο Τιμολόγιο, στα δεξιά του πεδίου Ημ/νία τιμολογίου, επιλέξτε το αναπτυσσόμενο βέλος, τοποθετήστε το δείκτη του ποντικιού στην επιλογή Φίλτρα ημερομηνίας και, στη συνέχεια, επιλέξτε τον τελευταίο μήνα."]
[null,"● ","Για να δείτε όλους τους πελάτες που έχουν τον ίδιο κωδικό περιοχής: Στο φύλλο \"Πελάτες\", στα δεξιά του πεδίου \"Τηλέφωνο\", επιλέξτε το αναπτυσσόμενο βέλος. Στο παράθυρο Φίλτρων, κάντε κλικ στο πλαίσιο Αναζήτηση κειμένου, πληκτρολογήστε τον υπεραστικό κωδικό και, στη συνέχεια, επιλέξτε OK. "]
[null,"Συμβουλές φίλτρων"]
[null,"● ","Εάν ένας πίνακας έχει μια γραμμή αθροίσματος, όπως πελάτες και τιμολόγια, τα υπολογιζόμενα αθροίσματα θα απεικονίζουν μόνο τη φιλτραρισμένη λίστα."]
[null,"● ","Χρησιμοποιήστε πολλά φίλτρα σε ένα μεμονωμένο πεδίο ή σε πολλά πεδία για να ρυθμίσετε με ακρίβεια τα αποτελέσματά σας."]
[null,"● ","Για να καταργήσετε ένα μεμονωμένο φίλτρο, επιλέξτε το αναπτυσσόμενο βέλος για μια στήλη που είχατε φιλτράρει προηγουμένως και, στη συνέχεια, κάντε κλικ στην επιλογή Απαλοιφή φίλτρου από  το <όνομα πεδίου>."]
[null,"● ","Για να καταργήσετε πολλά φίλτρα ταυτόχρονα, βάλτε το δείκτη του κελιού σας στον πίνακα, στην Κεντρική καρτέλα, στην ομάδα Επεξεργασία, επιλέξτε Ταξινόμηση  και φιλτράρισμα και στη συνέχεια, επιλέξτε Απαλοιφή. "]